Workbook

Sheet 2025 JAN
A1: Program Name | D1: 3S - ABC Residential Services | F1: Provider ID | H1: =VLOOKUP(D1,List!A2:C141,2) -> 555777999 | L1: FOR PROVIDER USE ONLY DO NOT SUBMIT WITH COST REPORT
A2: Report Period | D2: 2025-01-01 | F2: 2025-12-31 | J2: =IF($AD$1="",SUM(J4:J27),SUMIF($E$4:$E$27,$AD$1,J4:J27)) -> 5110 | K2: =IF($AD$1="",SUM(K4:K27),SUMIF($E$4:$E$27,$AD$1,K4:K27)) -> 14 | L2: Annual Totals | Y2: =IF($AD$1="",SUM(Y4:Y27),SUMIF($E$4:$E$27,$AD$1,Y4:Y27)) -> 1130784.6 | Z2: 9603.15 | AA2: 21027.65 | AB2: 1161415.4 | AC2: 220492.85 | AD2: 0 | AE2: 5270.6 | AF2: 12775 | AG2: 7475.2 | AH2: 16319.15 | AI2: 262332.8 | AJ2: 1423748.2 | AK2: 1423748.2 | AL2: 5110
A3: Client Name (b) | B3: COCA Recipient | C3: Client P1 ID (c) | D3: P1 Service Code/RAC (v) | E3: Program Type | F3: Rate Effective Date (d) | G3: Actual Start Date Overrides Column F | H3: Rate End Date | I3: Actual End Date Overrides Column H | J3: Resid Days Paid | K3: Client Count | L3: ISS Tier Level (e) | M3: ISS Tier Rate (f) | N3: ISS Prof Svs Rate (k) | O3: ISS CRST Tier Rate (l) | P3: Total ISS Daily Rate | Q3: Admin Tier Rate (n) | R3: Temp Rate Adjust (o) | S3: Admin CRST Tier Rate (p) | T3: Admin Cert Rate (q) | U3: Transport Rate (r) | V3: Other Non-ISS Rates (s) | W3: Total Non-ISS Daily Rate | X3: Total ISS & Non-ISS Daily Rate | Y3: Annual ISS Paid | Z3: Annual ISS Prof Svs Paid | AA3: Annual ISS CRST Paid | AB3: Total Annual ISS Paid | AC3: Annual Admin Paid | AD3: Annual Temp Rate Adjust | AE3: Annual Admin CRST Paid | AF3: Annual Admin Cert Paid | AG3: Annual Transport Paid | AH3: Annual Other Non-ISS Paid | AI3: Total Annual Non-ISS Paid | AJ3: Annual ISS & Non-ISS Paid | AK3: Annual ISS & Non-ISS Paid per Client | AL3: Annual Days Paid per Client
A4: Client A | C4: 500 | D4: SA722-3603 GH CORE | E4: GH Group Home | F4: 2025-01-01 | H4: 2025-12-31 | J4: =IF(F4>0,+IF(I4>0,I4,H4)-IF(G4>0,G4,F4)+1,0) -> 365 | K4: =IF(C4<=0,"",IF(C4=C3,"",1)) -> 1 | L4: 4 | M4: 291.71 | N4: 0 | O4: 5.42 | P4: =SUM(M4:O4) -> 297.13 | Q4: 57.97 | R4: 0 | S4: 1.36 | T4: 2.5 | U4: 0 | V4: 0 | W4: =SUM(Q4:V4) -> 61.83 | X4: =+P4+W4 -> 358.96 | Y4: =M4*J4 -> 106474.15 | Z4: =J4*N4 -> 0 | AA4: =O4*J4 -> 1978.3 | AB4: =$J4*P4 -> 108452.45 | AC4: 21159.05 | AD4: 0 | AE4: 496.4 | AF4: 912.5 | AG4: 0 | AH4: 0 | AI4: 22567.95 | AJ4: =AB4+AI4 -> 131020.4 | AK4: =IF(A5=A4,0,SUMIF($A$4:$A$4789,$A4,AB$4:AB$4789))+IF(A5=A4,0,SUMIF($A$4:$A$4789,$A4,AI$4:AI$4789)) -> 131020.4 | AL4: =IF(A5=A4,0,SUMIF($A$4:$A$4789,$A4,J$4:J$4789))+IF(A5=A4,0,SUMIF($A$4:$A$4789,$A4)) -> 365
A5: Client B | C5: 502 | D5: SA722-3603 GH CORE | E5: GH Group Home | F5: 2025-01-01 | H5: 2025-12-31 | J5: =IF(F5>0,+IF(I5>0,I5,H5)-IF(G5>0,G5,F5)+1,0) -> 365 | K5: =IF(C5<=0,"",IF(C5=C4,"",1)) -> 1 | L5: 3 | M5: 223.56 | N5: 0 | O5: 4.16 | P5: =SUM(M5:O5) -> 227.72 | Q5: 56.63 | R5: 0 | S5: 1.04 | T5: 2.5 | U5: 0 | V5: 0 | W5: =SUM(Q5:V5) -> 60.17 | X5: =+P5+W5 -> 287.89 | Y5: =M5*J5 -> 81599.4 | Z5: =J5*N5 -> 0 | AA5: =O5*J5 -> 1518.4 | AB5: =$J5*P5 -> 83117.8 | AC5: =$J5*Q5 -> 20669.95 | AD5: =$J5*R5 -> 0 | AE5: =$J5*S5 -> 379.6 | AF5: =$J5*T5 -> 912.5 | AG5: =$J5*U5 -> 0 | AH5: =$J5*V5 -> 0 | AI5: =$J5*W5 -> 21962.05 | AJ5: =AB5+AI5 -> 105079.85 | AK5: =IF(A6=A5,0,SUMIF($A$4:$A$4789,$A5,AB$4:AB$4789))+IF(A6=A5,0,SUMIF($A$4:$A$4789,$A5,AI$4:AI$4789)) -> 105079.85 | AL5: =IF(A6=A5,0,SUMIF($A$4:$A$4789,$A5,J$4:J$4789))+IF(A6=A5,0,SUMIF($A$4:$A$4789,$A5)) -> 365
A6: Client C | C6: 503 | D6: SA722-3603 GH CORE | E6: GH Group Home | F6: 2025-01-01 | H6: 2025-12-31 | J6: 365 | K6: 1 | L6: 2 | M6: 144.81 | N6: 7.75 | O6: 2.69 | P6: 155.25 | Q6: 54.84 | R6: 0 | S6: 0.68 | T6: 2.5 | U6: 0 | V6: 2.5 | W6: 60.52 | X6: 215.77 | Y6: 52855.65 | Z6: 2828.75 | AA6: 981.85 | AB6: 56666.25 | AC6: 20016.6 | AD6: 0 | AE6: 248.2 | AF6: 912.5 | AG6: 0 | AH6: 912.5 | AI6: 22089.8 | AJ6: 78756.05 | AK6: 78756.05 | AL6: 365
A7: Client D | C7: 505 | D7: SA722-3905 GTH State | E7: GTH Group Training Home | F7: 2025-01-01 | H7: 2025-12-31 | J7: 365 | K7: 1 | L7: 4 | M7: 291.71 | N7: 0 | O7: 5.42 | P7: 297.13 | Q7: 57.97 | R7: 0 | S7: 1.36 | T7: 2.5 | U7: 0 | V7: 2.5 | W7: 64.33 | X7: 361.46 | Y7: 106474.15 | Z7: 0 | AA7: 1978.3 | AB7: 108452.45 | AC7: 21159.05 | AD7: 0 | AE7: 496.4 | AF7: 912.5 | AG7: 0 | AH7: 912.5 | AI7: 23480.45 | AJ7: 131932.9 | AK7: 131932.9 | AL7: 365
A8: Client E | C8: 506 | D8: SA722-3905 GTH State | E8: GTH Group Training Home | F8: 2025-01-01 | H8: 2025-12-31 | J8: 365 | K8: 1 | L8: 4 | M8: 291.71 | N8: 0 | O8: 5.42 | P8: 297.13 | Q8: 57.97 | R8: 0 | S8: 1.36 | T8: 2.5 | U8: 0 | V8: 0 | W8: 61.83 | X8: 358.96 | Y8: 106474.15 | Z8: 0 | AA8: 1978.3 | AB8: 108452.45 | AC8: 21159.05 | AD8: 0 | AE8: 496.4 | AF8: 912.5 | AG8: 0 | AH8: 0 | AI8: 22567.95 | AJ8: 131020.4 | AK8: 131020.4 | AL8: 365
A9: Client 01 | C9: 509 | D9: SA716-3603 SL CORE | E9: SL Supported Living | F9: 2025-01-01 | H9: 2025-12-31 | J9: 365 | K9: 1 | L9: 2 | M9: 144.81 | N9: 0 | O9: 2.69 | P9: 147.5 | Q9: 34.02 | R9: 0 | S9: 0.68 | T9: 2.5 | U9: 2.25 | V9: 2.5 | W9: 41.95 | X9: 189.45 | Y9: 52855.65 | Z9: 0 | AA9: 981.85 | AB9: 53837.5 | AC9: 12417.3 | AD9: 0 | AE9: 248.2 | AF9: 912.5 | AG9: 821.25 | AH9: 912.5 | AI9: 15311.75 | AJ9: 69149.25 | AK9: 69149.25 | AL9: 365
A10: Client 02 | C10: 510 | D10: SA716-3603 SL CORE | E10: SL Supported Living | F10: 2025-01-01 | H10: 2025-12-31 | J10: 365 | K10: 1 | L10: 3 | M10: 223.56 | N10: 9.28 | O10: 4.16 | P10: 237 | Q10: 35.81 | R10: 0 | S10: 1.04 | T10: 2.5 | U10: 2.25 | V10: 13.87 | W10: 55.47 | X10: 292.47 | Y10: 81599.4 | Z10: 3387.2 | AA10: 1518.4 | AB10: 86505 | AC10: 13070.65 | AD10: 0 | AE10: 379.6 | AF10: 912.5 | AG10: 821.25 | AH10: 5062.55 | AI10: 20246.55 | AJ10: 106751.55 | AK10: 106751.55 | AL10: 365
A11: Client 04 | C11: 512 | D11: SA716-3603 SL CORE | E11: SL Supported Living | F11: 2025-01-01 | H11: 2025-12-31 | J11: 365 | K11: 1 | L11: 3 | M11: 223.56 | N11: 0 | O11: 4.16 | P11: 227.72 | Q11: 35.81 | R11: 0 | S11: 1.04 | T11: 2.5 | U11: 1.85 | V11: 10.44 | W11: 51.64 | X11: 279.36 | Y11: 81599.4 | Z11: 0 | AA11: 1518.4 | AB11: 83117.8 | AC11: 13070.65 | AD11: 0 | AE11: 379.6 | AF11: 912.5 | AG11: 675.25 | AH11: 3810.6 | AI11: 18848.6 | AJ11: 101966.4 | AK11: 101966.4 | AL11: 365
A12: Client 05 | C12: 513 | D12: SA716-3603 SL CORE | E12: SL Supported Living | F12: 2025-01-01 | H12: 2025-12-31 | J12: 365 | K12: 1 | L12: 3 | M12: 223.56 | N12: 0 | O12: 4.16 | P12: 227.72 | Q12: 35.81 | R12: 0 | S12: 1.04 | T12: 2.5 | U12: 1.88 | V12: 2.5 | W12: 43.73 | X12: 271.45 | Y12: 81599.4 | Z12: 0 | AA12: 1518.4 | AB12: 83117.8 | AC12: 13070.65 | AD12: 0 | AE12: 379.6 | AF12: 912.5 | AG12: 686.2 | AH12: 912.5 | AI12: 15961.45 | AJ12: 99079.25 | AK12: 99079.25 | AL12: 365
A13: Client 07 | C13: 515 | D13: SA716-3603 SL CORE | E13: SL Supported Living | F13: 2025-01-01 | H13: 2025-12-31 | J13: 365 | K13: 1 | L13: 2 | M13: 144.81 | N13: 0 | O13: 2.69 | P13: 147.5 | Q13: 34.02 | R13: 0 | S13: 0.68 | T13: 2.5 | U13: 2.5 | V13: 2.5 | W13: 42.2 | X13: 189.7 | Y13: 52855.65 | Z13: 0 | AA13: 981.85 | AB13: 53837.5 | AC13: 12417.3 | AD13: 0 | AE13: 248.2 | AF13: 912.5 | AG13: 912.5 | AH13: 912.5 | AI13: 15403 | AJ13: 69240.5 | AK13: 69240.5 | AL13: 365
A14: Client 08 | C14: 518 | D14: SA716-3603 SL CORE | E14: SL Supported Living | F14: 2025-01-01 | H14: 2025-12-31 | J14: 365 | K14: 1 | L14: 3 | M14: 223.56 | N14: 9.28 | O14: 4.16 | P14: 237 | Q14: 35.81 | R14: 0 | S14: 1.04 | T14: 2.5 | U14: 3.2 | V14: 7.9 | W14: 50.45 | X14: 287.45 | Y14: 81599.4 | Z14: 3387.2 | AA14: 1518.4 | AB14: 86505 | AC14: 13070.65 | AD14: 0 | AE14: 379.6 | AF14: 912.5 | AG14: 1168 | AH14: 2883.5 | AI14: 18414.25 | AJ14: 104919.25 | AK14: 104919.25 | AL14: 365
A15: Client 10 | C15: 520 | D15: SA716-3603 SL CORE | E15: SL Supported Living | F15: 2025-01-01 | H15: 2025-12-31 | J15: 365 | K15: 1 | L15: 3 | M15: 223.56 | N15: 0 | O15: 4.16 | P15: 227.72 | Q15: 35.81 | R15: 0 | S15: 1.04 | T15: 2.5 | U15: 2.25 | V15: 0 | W15: 41.6 | X15: 269.32 | Y15: 81599.4 | Z15: 0 | AA15: 1518.4 | AB15: 83117.8 | AC15: 13070.65 | AD15: 0 | AE15: 379.6 | AF15: 912.5 | AG15: 821.25 | AH15: 0 | AI15: 15184 | AJ15: 98301.8 | AK15: 98301.8 | AL15: 365
A16: Client 11 | C16: 521 | D16: SA716-3603 SL CORE | E16: SL Supported Living | F16: 2025-01-01 | H16: 2025-12-31 | J16: 365 | K16: 1 | L16: 3 | M16: 223.56 | N16: 0 | O16: 4.16 | P16: 227.72 | Q16: 35.81 | R16: 0 | S16: 1.04 | T16: 2.5 | U16: 1.85 | V16: 0 | W16: 41.2 | X16: 268.92 | Y16: 81599.4 | Z16: 0 | AA16: 1518.4 | AB16: 83117.8 | AC16: 13070.65 | AD16: 0 | AE16: 379.6 | AF16: 912.5 | AG16: 675.25 | AH16: 0 | AI16: 15038 | AJ16: 98155.8 | AK16: 98155.8 | AL16: 365
A17: Client 16 | C17: 536 | D17: SA716-3603 SL CORE | E17: SL Supported Living | F17: 2025-01-01 | H17: 2025-12-31 | J17: 365 | K17: 1 | L17: 3 | M17: 223.56 | N17: 0 | O17: 4.16 | P17: 227.72 | Q17: 35.81 | R17: 0 | S17: 1.04 | T17: 2.5 | U17: 2.45 | V17: 0 | W17: 41.8 | X17: 269.52 | Y17: 81599.4 | Z17: 0 | AA17: 1518.4 | AB17: 83117.8 | AC17: 13070.65 | AD17: 0 | AE17: 379.6 | AF17: 912.5 | AG17: 894.25 | AH17: 0 | AI17: 15257 | AJ17: 98374.8 | AK17: 98374.8 | AL17: 365
J18: 0 | P18: 0 | W18: 0 | X18: 0 | Y18: 0 | Z18: 0 | AA18: 0 | AB18: 0 | AC18: 0 | AD18: 0 | AE18: 0 | AF18: 0 | AG18: 0 | AH18: 0 | AI18: 0 | AJ18: 0 | AK18: 0 | AL18: 0
J19: 0 | P19: 0 | W19: 0 | X19: 0 | Y19: 0 | Z19: 0 | AA19: 0 | AB19: 0 | AC19: 0 | AD19: 0 | AE19: 0 | AF19: 0 | AG19: 0 | AH19: 0 | AI19: 0 | AJ19: 0 | AK19: 0 | AL19: 0
J20: 0 | P20: 0 | W20: 0 | X20: 0 | Y20: 0 | Z20: 0 | AA20: 0 | AB20: 0 | AC20: 0 | AD20: 0 | AE20: 0 | AF20: 0 | AG20: 0 | AH20: 0 | AI20: 0 | AJ20: 0 | AK20: 0 | AL20: 0
J21: 0 | P21: 0 | W21: 0 | X21: 0 | Y21: 0 | Z21: 0 | AA21: 0 | AB21: 0 | AC21: 0 | AD21: 0 | AE21: 0 | AF21: 0 | AG21: 0 | AH21: 0 | AI21: 0 | AJ21: 0 | AK21: 0 | AL21: 0
J22: 0 | P22: 0 | W22: 0 | X22: 0 | Y22: 0 | Z22: 0 | AA22: 0 | AB22: 0 | AC22: 0 | AD22: 0 | AE22: 0 | AF22: 0 | AG22: 0 | AH22: 0 | AI22: 0 | AJ22: 0 | AK22: 0 | AL22: 0
J23: 0 | P23: 0 | W23: 0 | X23: 0 | Y23: 0 | Z23: 0 | AA23: 0 | AB23: 0 | AC23: 0 | AD23: 0 | AE23: 0 | AF23: 0 | AG23: 0 | AH23: 0 | AI23: 0 | AJ23: 0 | AK23: 0 | AL23: 0
J24: 0 | P24: 0 | W24: 0 | X24: 0 | Y24: 0 | Z24: 0 | AA24: 0 | AB24: 0 | AC24: 0 | AD24: 0 | AE24: 0 | AF24: 0 | AG24: 0 | AH24: 0 | AI24: 0 | AJ24: 0 | AK24: 0 | AL24: 0
J25: 0 | P25: 0 | W25: 0 | X25: 0 | Y25: 0 | Z25: 0 | AA25: 0 | AB25: 0 | AC25: 0 | AD25: 0 | AE25: 0 | AF25: 0 | AG25: 0 | AH25: 0 | AI25: 0 | AJ25: 0 | AK25: 0 | AL25: 0
J26: 0 | P26: 0 | W26: 0 | X26: 0 | Y26: 0 | Z26: 0 | AA26: 0 | AB26: 0 | AC26: 0 | AD26: 0 | AE26: 0 | AF26: 0 | AG26: 0 | AH26: 0 | AI26: 0 | AJ26: 0 | AK26: 0 | AL26: 0
J27: 0 | N27: 0 | P27: =SUM(M27:O27) -> 0 | W27: 0 | X27: 0 | Y27: 0 | Z27: 0 | AA27: 0 | AB27: 0 | AC27: 0 | AD27: 0 | AE27: 0 | AF27: 0 | AG27: 0 | AH27: 0 | AI27: 0 | AJ27: 0 | AK27: 0 | AL27: 0
A28: Totals - Detail | J28: =SUBTOTAL(9,J4:J27) -> 5110 | K28: =SUBTOTAL(9,K4:K27) -> 14 | P28: =SUBTOTAL(9,P4:P27) -> 3181.96 | W28: =SUBTOTAL(9,W4:W27) -> 718.72 | X28: 3900.68 | Y28: 1130784.6 | Z28: 9603.15 | AA28: 21027.65 | AB28: 1161415.4 | AC28: 220492.85 | AD28: 0 | AE28: 5270.6 | AF28: 12775 | AG28: 7475.2 | AH28: 16319.15 | AI28: 262332.8 | AJ28: 1423748.2 | AK28: 1423748.2 | AL28: 5110
A29: 1 | E29: SL Supported Living | J29: =SUMIF($E$4:$E$26,$E$29,J4:J26) -> 3285 | K29: =SUMIF($E$4:$E$26,$E$29,K4:K26) -> 9 | P29: =SUMIF($E$4:$E$26,$E$29,P4:P26) -> 1907.6 | W29: =SUMIF($E$4:$E$26,$E$29,W4:W26) -> 410.04 | X29: 2317.64 | Y29: 676907.1 | Z29: 6774.4 | AA29: 12592.5 | AB29: 696274 | AC29: 116329.15 | AD29: 0 | AE29: 3153.6 | AF29: 8212.5 | AG29: 7475.2 | AH29: 14494.15 | AI29: 149664.6 | AJ29: 845938.6 | AK29: 845938.6 | AL29: 3285
A30: 2 | E30: GH Group Home | J30: =SUMIF($E$4:$E$26,$E$30,J4:J27) -> 1095 | K30: =SUMIF($E$4:$E$26,$E$30,K4:K27) -> 3 | P30: =SUMIF($E$4:$E$26,$E$30,P4:P27) -> 680.1 | W30: =SUMIF($E$4:$E$26,$E$30,W4:W27) -> 182.52 | X30: 862.62 | Y30: 240929.2 | Z30: 2828.75 | AA30: 4478.55 | AB30: 248236.5 | AC30: 61845.6 | AD30: 0 | AE30: 1124.2 | AF30: 2737.5 | AG30: 0 | AH30: 912.5 | AI30: 66619.8 | AJ30: 314856.3 | AK30: 314856.3 | AL30: 1095
A31: 3 | E31: GTH Group Training Home | J31: =SUMIF($E$4:$E$26,$E$31,J4:J26) -> 730 | K31: =SUMIF($E$4:$E$26,$E$31,K4:K26) -> 2 | P31: =SUMIF($E$4:$E$26,$E$31,P4:P26) -> 594.26 | W31: =SUMIF($E$4:$E$26,$E$31,W4:W26) -> 126.16 | X31: 720.42 | Y31: 212948.3 | Z31: 0 | AA31: 3956.6 | AB31: 216904.9 | AC31: 42318.1 | AD31: 0 | AE31: 992.8 | AF31: 1825 | AG31: 0 | AH31: 912.5 | AI31: 46048.4 | AJ31: 262953.3 | AK31: 262953.3 | AL31: 730
A32: DSHS/DDA Schedule H Rate History (Rev. 08/2024)

Sheet Exhibit
A1: Supported Living / Group Home -Exhibit C | U1: Revision #: 250101
A3: ABC Residential Services | H3: 555777999 | K3: 1234-567890 | N3: 3S | P3: 2025-03-01 | S3: 14
A4: Contractor Name | H4: Provider ID | K4: Contract No. | N4: Region | P4: Process Date | S4: No. of Clients (excluding SSP funded)
A6: The undersigned hereby affirm that the following are the agreed upon number of clients and reimbursement rates associated with the indicated contract and contract period. This rate sheet revision supersedes all previous rate sheets as of the effective date.
A9: Contractor Signature | J9: Date Signed | M9: DSHS Regional Administrator or Designee | U9: Date Signed
A11: a | B11: b | C11: c | D11: d | E11: e | F11: f | G11: g | H11: h | I11: i | J11: j | K11: k | L11: l | M11: m | N11: n | O11: o | P11: p | Q11: q | R11: r | S11: s | T11: t | U11: u | V11: v | W11: w
A12: Program Name | B12: Client Name | C12: Client P1 ID | D12: Rate Effective Date | E12: ISS Tier Level | F12: ISS Daily Tier Rate | G12: Prof Svs Hrs PCD 1 | H12: Prof Svs Hrly Rate 1 | I12: Prof Svs Hrs PCD 2 | J12: Prof Svs Hrly Rate 2 | K12: ISS Prof Svs Daily Rate | L12: ISS CRST Tier Rate | M12: Total ISS Daily Rate | N12: Admin Tier Rate | O12: Temp Rate Adjust | P12: Admin CRST Tier Rate | Q12: Cert Rate | R12: Trans Rate | S12: Other Non-ISS Rates | T12: Total Non-ISS Daily Rate | U12: Total Daily Rate | V12: P1 Service Code-RAC | W12: Revision #
A13: ABC Residential Services | B13: Client A | C13: 500 | D13: 2025-01-01 | E13: 4 | F13: 291.71 | G13: 0 | H13: 0 | I13: 0 | J13: 0 | K13: 0 | L13: 5.42 | M13: =SUM(F13,K13,L13) -> 297.13 | N13: 57.97 | O13: 0 | P13: 1.36 | Q13: 2.5 | R13: 0 | S13: 0 | T13: =SUM(N13:S13) -> 61.83 | U13: =M13+T13 -> 358.96 | V13: SA722-3603 | W13: 250100
A14: ABC Residential Services | B14: Client B | C14: 502 | D14: 2025-01-01 | E14: 3 | F14: 223.56 | G14: 0 | H14: 0 | I14: 0 | J14: 0 | K14: 0 | L14: 4.16 | M14: =SUM(F14,K14,L14) -> 227.72 | N14: 56.63 | O14: 0 | P14: 1.04 | Q14: 2.5 | R14: 0 | S14: 0 | T14: =SUM(N14:S14) -> 60.17 | U14: =M14+T14 -> 287.89 | V14: SA722-3603 | W14: 250100
A15: ABC Residential Services | B15: Client C | C15: 503 | D15: 2025-01-01 | E15: 2 | F15: 144.81 | G15: 0 | H15: 0 | I15: 0 | J15: 0 | K15: 7.75 | L15: 2.69 | M15: 155.25 | N15: 54.84 | O15: 0 | P15: 0.68 | Q15: 2.5 | R15: 0 | S15: 2.5 | T15: 60.52 | U15: 215.77 | V15: SA722-3603 | W15: 250100
A16: ABC Residential Services | B16: Client D | C16: 505 | D16: 2025-01-01 | E16: 4 | F16: 291.71 | G16: 0 | H16: 0 | I16: 0 | J16: 0 | K16: 0 | L16: 5.42 | M16: 297.13 | N16: 57.97 | O16: 0 | P16: 1.36 | Q16: 2.5 | R16: 0 | S16: 0 | T16: 61.83 | U16: 358.96 | V16: SA722-3905 | W16: 250100
A17: ABC Residential Services | B17: Client E | C17: 506 | D17: 2025-01-01 | E17: 4 | F17: 291.71 | G17: 0 | H17: 0 | I17: 0 | J17: 0 | K17: 0 | L17: 5.42 | M17: 297.13 | N17: 57.97 | O17: 0 | P17: 1.36 | Q17: 2.5 | R17: 0 | S17: 0 | T17: 61.83 | U17: 358.96 | V17: SA722-3905 | W17: 250100
A18: ABC Residential Services | B18: Client 1 | C18: 509 | D18: 2025-01-01 | E18: 2 | F18: 144.81 | G18: 0 | H18: 0 | I18: 0 | J18: 0 | K18: 0 | L18: 2.69 | M18: 147.5 | N18: 34.02 | O18: 0 | P18: 0.68 | Q18: 2.5 | R18: 2.25 | S18: 2.5 | T18: 41.95 | U18: 189.45 | V18: SA716-3603 | W18: 250100
A19: ABC Residential Services | B19: Client 2 | C19: 510 | D19: 2025-01-01 | E19: 3 | F19: 223.56 | G19: 0 | H19: 0 | I19: 0 | J19: 0 | K19: 9.28 | L19: 4.16 | M19: 237 | N19: 35.81 | O19: 0 | P19: 1.04 | Q19: 2.5 | R19: 2.25 | S19: 13.87 | T19: 55.47 | U19: 292.47 | V19: SA716-3603 | W19: 250100
A20: ABC Residential Services | B20: Client 4 | C20: 512 | D20: 2025-03-01 | E20: 3 | F20: 223.56 | G20: 0.35 | H20: 26.5 | I20: 0 | J20: 0 | K20: 9.28 | L20: 4.16 | M20: 237 | N20: 35.81 | O20: 0 | P20: 1.04 | Q20: 2.5 | R20: 4.58 | S20: 7.9 | T20: 51.83 | U20: 288.83 | V20: SA716-3603 | W20: 250101
A21: ABC Residential Services | B21: Client 7 | C21: 515 | D21: 2025-01-01 | E21: 2 | F21: 144.81 | G21: 0 | H21: 0 | I21: 0 | J21: 0 | K21: 0 | L21: 2.69 | M21: 147.5 | N21: 34.02 | O21: 0 | P21: 0.68 | Q21: 2.5 | R21: 2.5 | S21: 2.5 | T21: 42.2 | U21: 189.7 | V21: SA716-3603 | W21: 250100
A22: ABC Residential Services | B22: Client 8 | C22: 518 | D22: 2025-01-01 | E22: 3 | F22: 223.56 | G22: 0.35 | H22: 26.5 | I22: 0 | J22: 0 | K22: 9.28 | L22: 4.16 | M22: =SUM(F22,K22,L22) -> 237 | N22: 35.81 | O22: 0 | P22: 1.04 | Q22: 2.5 | R22: 3.2 | S22: 7.9 | T22: =SUM(N22:S22) -> 50.45 | U22: =M22+T22 -> 287.45 | V22: SA716-3603 | W22: 250100
A23: ABC Residential Services | B23: Client 10 | C23: 520 | D23: 2025-01-01 | E23: 3 | F23: 223.56 | G23: 0 | H23: 0 | I23: 0 | J23: 0 | K23: 0 | L23: 4.16 | M23: 227.72 | N23: 35.81 | O23: 0 | P23: 1.04 | Q23: 2.5 | R23: 2.25 | S23: 0 | T23: 41.6 | U23: 269.32 | V23: SA716-3603 | W23: 250100
A24: ABC Residential Services | B24: Client 11 | C24: 521 | D24: 2025-01-01 | E24: 3 | F24: 223.56 | G24: 0 | H24: 0 | I24: 0 | J24: 0 | K24: 0 | L24: 4.16 | M24: 227.72 | N24: 35.81 | O24: 0 | P24: 1.04 | Q24: 2.5 | R24: 1.85 | S24: 0 | T24: 41.2 | U24: 268.92 | V24: SA716-3603 | W24: 250100
A25: ABC Residential Services | B25: Client 13 | C25: 523 | D25: 2025-02-01 | E25: 2 | F25: 144.81 | G25: 0 | H25: 0 | I25: 0 | J25: 0 | K25: 0 | L25: 2.69 | M25: 147.5 | N25: 34.02 | O25: 0 | P25: 0.68 | Q25: 2.5 | R25: 3.25 | S25: 2.5 | T25: 42.95 | U25: 190.45 | V25: SA716-3603 | W25: 250101
A26: ABC Residential Services | B26: Client 16 | C26: 536 | D26: 2025-01-01 | E26: 3 | F26: 223.56 | G26: 0 | H26: 0 | I26: 0 | J26: 0 | K26: 0 | L26: 4.16 | M26: 227.72 | N26: 35.81 | O26: 0 | P26: 1.04 | Q26: 2.5 | R26: 2.45 | S26: 0 | T26: 41.8 | U26: 269.52 | V26: SA716-3603 | W26: 250100
A30: DSHS/DDA Exhibit C (Rev. 08/2024)

Sheet 2025 JUN
A1: Program Name | D1: 3S - ABC Residential Services | F1: Provider ID | H1: =VLOOKUP(D1,List!A2:C141,2) -> 555777999 | L1: FOR PROVIDER USE ONLY DO NOT SUBMIT WITH COST REPORT
A2: Report Period | D2: 2025-01-01 | F2: 2025-06-30 | J2: =IF($AD$1="",SUM(J4:J32),SUMIF($E$4:$E$32,$AD$1,J4:J32)) -> 2642 | K2: =IF($AD$1="",SUM(K4:K32),SUMIF($E$4:$E$32,$AD$1,K4:K32)) -> 18 | L2: Annual Totals | Y2: =IF($AD$1="",SUM(Y4:Y32),SUMIF($E$4:$E$32,$AD$1,Y4:Y32)) -> 573077.22 | Z2: 5894.27 | AA2: 10656.19 | AB2: 589627.68 | AC2: 115167.01 | AD2: 0 | AE2: 2671.96 | AF2: 6605 | AG2: 4331.64 | AH2: 8104.38 | AI2: 136879.99 | AJ2: 726507.67 | AK2: 726507.67 | AL2: 2642
A3: Client Name (b) | B3: COCA Recipient | C3: Client P1 ID (c) | D3: P1 Service Code/RAC (v) | E3: Program Type | F3: Rate Effective Date (d) | G3: Actual Start Date Overrides Column F | H3: Rate End Date | I3: Actual End Date Overrides Column H | J3: Resid Days Paid | K3: Client Count | L3: ISS Tier Level (e) | M3: ISS Daily Tier Rate (f) | N3: ISS Prof Svs Daily Rate (k) | O3: ISS CRST Tier Rate (l) | P3: Total ISS Daily Rate | Q3: Admin Tier Rate (n) | R3: Temp Rate Adjust (o) | S3: Admin CRST Tier Rate (p) | T3: Admin Cert Rate (q) | U3: Transport Rate (r) | V3: Other Non-ISS Rates (s) | W3: Total Non-ISS Daily Rate | X3: Total ISS & Non-ISS Daily Rate | Y3: Annual ISS Paid | Z3: Annual ISS Prof Svs Paid | AA3: Annual ISS CRST Paid | AB3: Total Annual ISS Paid | AC3: Annual Admin Paid | AD3: Annual Temp Rate Adjust | AE3: Annual Admin CRST Paid | AF3: Annual Admin Cert Paid | AG3: Annual Transport Paid | AH3: Annual Other Non-ISS Paid | AI3: Total Annual Non-ISS Paid | AJ3: Annual ISS & Non-ISS Paid | AK3: Annual ISS & Non-ISS Paid per Client | AL3: Annual Days Paid per Client
A4: Client A | C4: 500 | D4: SA722-3603 GH CORE | E4: GH Group Home | F4: 2025-01-01 | H4: 2025-06-30 | J4: =IF(F4>0,+IF(I4>0,I4,H4)-IF(G4>0,G4,F4)+1,0) -> 181 | K4: =IF(C4<=0,"",IF(C4=C3,"",1)) -> 1 | L4: 4 | M4: 291.71 | N4: 0 | O4: 5.42 | P4: =SUM(M4:O4) -> 297.13 | Q4: 57.97 | R4: 0 | S4: 1.36 | T4: 2.5 | U4: 0 | V4: 0 | W4: =SUM(Q4:V4) -> 61.83 | X4: =+P4+W4 -> 358.96 | Y4: =M4*J4 -> 52799.51 | Z4: =J4*N4 -> 0 | AA4: =O4*J4 -> 981.02 | AB4: =$J4*P4 -> 53780.53 | AC4: 10492.57 | AD4: 0 | AE4: 246.16 | AF4: 452.5 | AG4: 0 | AH4: 0 | AI4: 11191.23 | AJ4: =AB4+AI4 -> 64971.76 | AK4: =IF(A5=A4,0,SUMIF($A$4:$A$4794,$A4,AB$4:AB$4794))+IF(A5=A4,0,SUMIF($A$4:$A$4794,$A4,AI$4:AI$4794)) -> 64971.76 | AL4: =IF(A5=A4,0,SUMIF($A$4:$A$4794,$A4,J$4:J$4794))+IF(A5=A4,0,SUMIF($A$4:$A$4794,$A4)) -> 181
A5: Client B | C5: 502 | D5: SA722-3603 GH CORE | E5: GH Group Home | F5: 2025-01-01 | H5: 2025-06-30 | J5: 181 | K5: 1 | L5: 3 | M5: 223.56 | N5: 0 | O5: 4.16 | P5: =SUM(M5:O5) -> 227.72 | Q5: 56.63 | R5: 0 | S5: 1.04 | T5: 2.5 | U5: 0 | V5: 0 | W5: 60.17 | X5: 287.89 | Y5: 40464.36 | Z5: =J5*N5 -> 0 | AA5: 752.96 | AB5: 41217.32 | AC5: 10250.03 | AD5: 0 | AE5: 188.24 | AF5: 452.5 | AG5: 0 | AH5: 0 | AI5: 10890.77 | AJ5: 52108.09 | AK5: =IF(A6=A5,0,SUMIF($A$4:$A$4794,$A5,AB$4:AB$4794))+IF(A6=A5,0,SUMIF($A$4:$A$4794,$A5,AI$4:AI$4794)) -> 52108.09 | AL5: =IF(A6=A5,0,SUMIF($A$4:$A$4794,$A5,J$4:J$4794))+IF(A6=A5,0,SUMIF($A$4:$A$4794,$A5)) -> 181
A6: Client C | C6: 503 | D6: SA722-3603 GH CORE | E6: GH Group Home | F6: 2025-01-01 | H6: 2025-06-30 | J6: 181 | K6: 1 | L6: 2 | M6: 144.81 | N6: 7.75 | O6: 2.69 | P6: 155.25 | Q6: 54.84 | R6: 0 | S6: 0.68 | T6: 2.5 | U6: 0 | V6: 2.5 | W6: 60.52 | X6: 215.77 | Y6: 26210.61 | Z6: 1402.75 | AA6: 486.89 | AB6: 28100.25 | AC6: 9926.04 | AD6: 0 | AE6: 123.08 | AF6: 452.5 | AG6: 0 | AH6: 452.5 | AI6: 10954.12 | AJ6: 39054.37 | AK6: 39054.37 | AL6: 181
A7: Client D | C7: 505 | D7: SA722-3905 GTH State | E7: GTH Group Training Home | F7: 2025-01-01 | H7: 2025-06-30 | J7: 181 | K7: 1 | L7: 4 | M7: 291.71 | N7: 0 | O7: 5.42 | P7: 297.13 | Q7: 57.97 | R7: 0 | S7: 1.36 | T7: 2.5 | U7: 0 | V7: 2.5 | W7: 64.33 | X7: 361.46 | Y7: 52799.51 | Z7: 0 | AA7: 981.02 | AB7: 53780.53 | AC7: 10492.57 | AD7: 0 | AE7: 246.16 | AF7: 452.5 | AG7: 0 | AH7: 452.5 | AI7: 11643.73 | AJ7: 65424.26 | AK7: 65424.26 | AL7: 181
A8: Client E | C8: 506 | D8: SA722-3905 GTH State | E8: GTH Group Training Home | F8: 2025-01-01 | H8: 2025-06-30 | J8: 181 | K8: 1 | L8: 4 | M8: 291.71 | N8: 0 | O8: 5.42 | P8: 297.13 | Q8: 57.97 | R8: 0 | S8: 1.36 | T8: 2.5 | U8: 0 | V8: 0 | W8: 61.83 | X8: 358.96 | Y8: 52799.51 | Z8: 0 | AA8: 981.02 | AB8: 53780.53 | AC8: 10492.57 | AD8: 0 | AE8: 246.16 | AF8: 452.5 | AG8: 0 | AH8: 0 | AI8: 11191.23 | AJ8: 64971.76 | AK8: 64971.76 | AL8: 181
A9: Client F | C9: 508 | D9: SA722-3603 GTH CORE | E9: GTH Group Training Home | F9: 2025-03-16 | H9: 2025-06-30 | J9: 107 | K9: 1 | L9: 3 | M9: 223.56 | N9: 0 | O9: 4.16 | P9: 227.72 | Q9: 56.63 | R9: 0 | S9: 1.04 | T9: 2.5 | U9: 0 | V9: 0 | W9: 60.17 | X9: 287.89 | Y9: 23920.92 | Z9: 0 | AA9: 445.12 | AB9: 24366.04 | AC9: 6059.41 | AD9: 0 | AE9: 111.28 | AF9: 267.5 | AG9: 0 | AH9: 0 | AI9: 6438.19 | AJ9: 30804.23 | AK9: 30804.23 | AL9: 107
A10: Client 01 | C10: 509 | D10: SA716-3603 SL CORE | E10: SL Supported Living | F10: 2025-01-01 | H10: 2025-06-30 | J10: 181 | K10: 1 | L10: 2 | M10: 144.81 | N10: 0 | O10: 2.69 | P10: 147.5 | Q10: 34.02 | R10: 0 | S10: 0.68 | T10: 2.5 | U10: 2.25 | V10: 2.5 | W10: 41.95 | X10: 189.45 | Y10: 26210.61 | Z10: 0 | AA10: 486.89 | AB10: 26697.5 | AC10: 6157.62 | AD10: 0 | AE10: 123.08 | AF10: 452.5 | AG10: 407.25 | AH10: 452.5 | AI10: 7592.95 | AJ10: 34290.45 | AK10: 34290.45 | AL10: 181
A11: Client 02 | C11: 510 | D11: SA716-3603 SL CORE | E11: SL Supported Living | F11: 2025-01-01 | H11: 2025-06-30 | J11: 181 | K11: 1 | L11: 3 | M11: 223.56 | N11: 9.28 | O11: 4.16 | P11: 237 | Q11: 35.81 | R11: 0 | S11: 1.04 | T11: 2.5 | U11: 2.25 | V11: 13.87 | W11: 55.47 | X11: 292.47 | Y11: 40464.36 | Z11: 1679.68 | AA11: 752.96 | AB11: 42897 | AC11: 6481.61 | AD11: 0 | AE11: 188.24 | AF11: 452.5 | AG11: 407.25 | AH11: 2510.47 | AI11: 10040.07 | AJ11: 52937.07 | AK11: 52937.07 | AL11: 181
A12: Client 04 | C12: 512 | D12: SA716-3603 SL CORE | E12: SL Supported Living | F12: 2025-01-01 | H12: 2025-12-31 | I12: 2025-02-28 | J12: 59 | K12: 1 | L12: 3 | M12: 223.56 | N12: 0 | O12: 4.16 | P12: 227.72 | Q12: 35.81 | R12: 0 | S12: 1.04 | T12: 2.5 | U12: 1.85 | V12: 10.44 | W12: 51.64 | X12: 279.36 | Y12: 13190.04 | Z12: 0 | AA12: 245.44 | AB12: 13435.48 | AC12: 2112.79 | AD12: 0 | AE12: 61.36 | AF12: 147.5 | AG12: 109.15 | AH12: 615.96 | AI12: 3046.76 | AJ12: 16482.24 | AK12: 0 | AL12: 0
A13: Client 04 | C13: 512 | D13: SA716-3603 SL CORE | E13: SL Supported Living | F13: 2025-03-01 | H13: 2025-06-30 | J13: 122 | L13: 3 | M13: 223.56 | N13: 9.28 | O13: 4.16 | P13: 237 | Q13: 35.81 | R13: 0 | S13: 1.04 | T13: 2.5 | U13: 4.58 | V13: 7.9 | W13: 51.83 | X13: 288.83 | Y13: 27274.32 | Z13: 1132.16 | AA13: 507.52 | AB13: 28914 | AC13: 4368.82 | AD13: 0 | AE13: 126.88 | AF13: 305 | AG13: 558.76 | AH13: 963.8 | AI13: 6323.26 | AJ13: 35237.26 | AK13: 51719.5 | AL13: 181
A14: Client 05 | C14: 513 | D14: SA716-3603 SL CORE | E14: SL Supported Living | F14: 2025-01-01 | H14: 2025-12-31 | I14: 2025-01-21 | J14: 21 | K14: 1 | L14: 3 | M14: 223.56 | N14: 0 | O14: 4.16 | P14: 227.72 | Q14: 35.81 | R14: 0 | S14: 1.04 | T14: 2.5 | U14: 1.88 | V14: 2.5 | W14: 43.73 | X14: 271.45 | Y14: 4694.76 | Z14: 0 | AA14: 87.36 | AB14: 4782.12 | AC14: 752.01 | AD14: 0 | AE14: 21.84 | AF14: 52.5 | AG14: 39.48 | AH14: 52.5 | AI14: 918.33 | AJ14: 5700.45 | AK14: 5700.45 | AL14: 21
A15: Client 06 | C15: 514 | D15: SA716-3603 SL CORE | E15: SL Supported Living | F15: 2025-05-18 | G15: 2025-05-15 | H15: 2025-06-30 | J15: 47 | K15: 1 | L15: 3 | M15: 223.56 | N15: 0 | O15: 4.16 | P15: 227.72 | Q15: 35.81 | R15: 0 | S15: 1.04 | T15: 2.5 | U15: 2.35 | V15: 0 | W15: 41.7 | X15: 269.42 | Y15: 10507.32 | Z15: 0 | AA15: 195.52 | AB15: =$J15*P15 -> 10702.84 | AC15: 1683.07 | AD15: 0 | AE15: 48.88 | AF15: 117.5 | AG15: 110.45 | AH15: 0 | AI15: 1959.9 | AJ15: 12662.74 | AK15: 12662.74 | AL15: 47
A16: Client 07 | C16: 515 | D16: SA716-3603 SL CORE | E16: SL Supported Living | F16: 2025-01-01 | H16: 2025-06-30 | J16: 181 | K16: 1 | L16: 2 | M16: 144.81 | N16: 0 | O16: 2.69 | P16: 147.5 | Q16: 34.02 | R16: 0 | S16: 0.68 | T16: 2.5 | U16: 2.5 | V16: 2.5 | W16: 42.2 | X16: 189.7 | Y16: 26210.61 | Z16: 0 | AA16: 486.89 | AB16: 26697.5 | AC16: 6157.62 | AD16: 0 | AE16: 123.08 | AF16: 452.5 | AG16: 452.5 | AH16: 452.5 | AI16: 7638.2 | AJ16: 34335.7 | AK16: 34335.7 | AL16: 181
A17: Client 08 | C17: 518 | D17: SA716-3603 SL CORE | E17: SL Supported Living | F17: 2025-01-01 | H17: 2025-06-30 | J17: 181 | K17: 1 | L17: 3 | M17: 223.56 | N17: 9.28 | O17: 4.16 | P17: 237 | Q17: 35.81 | R17: 0 | S17: 1.04 | T17: 2.5 | U17: 3.2 | V17: 7.9 | W17: 50.45 | X17: 287.45 | Y17: 40464.36 | Z17: 1679.68 | AA17: 752.96 | AB17: 42897 | AC17: 6481.61 | AD17: 0 | AE17: 188.24 | AF17: 452.5 | AG17: 579.2 | AH17: 1429.9 | AI17: 9131.45 | AJ17: 52028.45 | AK17: 52028.45 | AL17: 181
A18: Client 10 | C18: 520 | D18: SA716-3603 SL CORE | E18: SL Supported Living | F18: 2025-01-01 | H18: 2025-06-30 | J18: 181 | K18: 1 | L18: 3 | M18: 223.56 | N18: 0 | O18: 4.16 | P18: 227.72 | Q18: 35.81 | R18: 0 | S18: 1.04 | T18: 2.5 | U18: 2.25 | V18: 0 | W18: 41.6 | X18: 269.32 | Y18: 40464.36 | Z18: 0 | AA18: 752.96 | AB18: 41217.32 | AC18: 6481.61 | AD18: 0 | AE18: 188.24 | AF18: 452.5 | AG18: 407.25 | AH18: 0 | AI18: 7529.6 | AJ18: 48746.92 | AK18: 48746.92 | AL18: 181
A19: Client 11 | C19: 521 | D19: SA716-3603 SL CORE | E19: SL Supported Living | F19: 2025-01-01 | H19: 2025-06-30 | J19: 181 | K19: 1 | L19: 3 | M19: 223.56 | N19: 0 | O19: 4.16 | P19: 227.72 | Q19: 35.81 | R19: 0 | S19: 1.04 | T19: 2.5 | U19: 1.85 | V19: 0 | W19: 41.2 | X19: 268.92 | Y19: 40464.36 | Z19: 0 | AA19: 752.96 | AB19: 41217.32 | AC19: 6481.61 | AD19: 0 | AE19: 188.24 | AF19: 452.5 | AG19: 334.85 | AH19: 0 | AI19: 7457.2 | AJ19: 48674.52 | AK19: 48674.52 | AL19: 181
A20: Client 13 | C20: 523 | D20: SA716-3603 SL CORE | E20: SL Supported Living | F20: 2025-02-01 | H20: 2025-06-30 | J20: 150 | K20: 1 | L20: 2 | M20: 144.81 | N20: 0 | O20: 2.69 | P20: 147.5 | Q20: 34.02 | R20: 0 | S20: 0.68 | T20: 2.5 | U20: 3.25 | V20: 2.5 | W20: 42.95 | X20: 190.45 | Y20: 21721.5 | Z20: 0 | AA20: 403.5 | AB20: 22125 | AC20: 5103 | AD20: 0 | AE20: 102 | AF20: 375 | AG20: 487.5 | AH20: 375 | AI20: 6442.5 | AJ20: 28567.5 | AK20: 28567.5 | AL20: 150
A21: Client 14 | C21: 533 | D21: SA716-3603 SL CORE | E21: SL Supported Living | F21: 2025-06-05 | G21: 2025-06-06 | H21: 2025-06-30 | J21: 25 | K21: 1 | L21: 3 | M21: 223.56 | N21: 0 | O21: 4.16 | P21: 227.72 | Q21: 35.81 | R21: 0 | S21: 1.04 | T21: 2.5 | U21: 5.76 | V21: 13.87 | W21: 58.98 | X21: 286.7 | Y21: 5589 | Z21: 0 | AA21: 104 | AB21: 5693 | AC21: 895.25 | AD21: 0 | AE21: 26 | AF21: 62.5 | AG21: 144 | AH21: 346.75 | AI21: 1474.5 | AJ21: 7167.5 | AK21: 7167.5 | AL21: 25
A22: Client 16 | C22: 536 | D22: SA716-3603 SL CORE | E22: SL Supported Living | F22: 2025-01-01 | H22: 2025-12-31 | I22: 2025-04-30 | J22: 120 | K22: 1 | L22: 3 | M22: 223.56 | N22: 0 | O22: 4.16 | P22: 227.72 | Q22: 35.81 | R22: 0 | S22: 1.04 | T22: 2.5 | U22: 2.45 | V22: 0 | W22: 41.8 | X22: 269.52 | Y22: 26827.2 | Z22: 0 | AA22: 499.2 | AB22: 27326.4 | AC22: 4297.2 | AD22: 0 | AE22: 124.8 | AF22: 300 | AG22: 294 | AH22: 0 | AI22: 5016 | AJ22: 32342.4 | AK22: 32342.4 | AL22: 120
J23: 0 | P23: 0 | W23: 0 | X23: 0 | Y23: 0 | Z23: 0 | AA23: 0 | AB23: 0 | AC23: 0 | AD23: 0 | AE23: 0 | AF23: 0 | AG23: 0 | AH23: 0 | AI23: 0 | AJ23: 0 | AK23: 0 | AL23: 0
J24: 0 | P24: 0 | W24: 0 | X24: 0 | Y24: 0 | Z24: 0 | AA24: 0 | AB24: 0 | AC24: 0 | AD24: 0 | AE24: 0 | AF24: 0 | AG24: 0 | AH24: 0 | AI24: 0 | AJ24: 0 | AK24: 0 | AL24: 0
J25: 0 | P25: 0 | W25: 0 | X25: 0 | Y25: 0 | Z25: 0 | AA25: 0 | AB25: 0 | AC25: 0 | AD25: 0 | AE25: 0 | AF25: 0 | AG25: 0 | AH25: 0 | AI25: 0 | AJ25: 0 | AK25: 0 | AL25: 0
J26: 0 | P26: 0 | W26: 0 | X26: 0 | Y26: 0 | Z26: 0 | AA26: 0 | AB26: 0 | AC26: 0 | AD26: 0 | AE26: 0 | AF26: 0 | AG26: 0 | AH26: 0 | AI26: 0 | AJ26: 0 | AK26: 0 | AL26: 0
J27: 0 | P27: 0 | W27: 0 | X27: 0 | Y27: 0 | Z27: 0 | AA27: 0 | AB27: 0 | AC27: 0 | AD27: 0 | AE27: 0 | AF27: 0 | AG27: 0 | AH27: 0 | AI27: 0 | AJ27: 0 | AK27: 0 | AL27: 0
J28: 0 | P28: 0 | W28: 0 | X28: 0 | Y28: 0 | Z28: 0 | AA28: 0 | AB28: 0 | AC28: 0 | AD28: 0 | AE28: 0 | AF28: 0 | AG28: 0 | AH28: 0 | AI28: 0 | AJ28: 0 | AK28: 0 | AL28: 0
J29: 0 | P29: 0 | W29: 0 | X29: 0 | Y29: 0 | Z29: 0 | AA29: 0 | AB29: 0 | AC29: 0 | AD29: 0 | AE29: 0 | AF29: 0 | AG29: 0 | AH29: 0 | AI29: 0 | AJ29: 0 | AK29: 0 | AL29: 0
J30: 0 | P30: 0 | W30: 0 | X30: 0 | Y30: 0 | Z30: 0 | AA30: 0 | AB30: 0 | AC30: 0 | AD30: 0 | AE30: 0 | AF30: 0 | AG30: 0 | AH30: 0 | AI30: 0 | AJ30: 0 | AK30: 0 | AL30: 0
J31: 0 | P31: 0 | W31: 0 | X31: 0 | Y31: 0 | Z31: 0 | AA31: 0 | AB31: 0 | AC31: 0 | AD31: 0 | AE31: 0 | AF31: 0 | AG31: 0 | AH31: 0 | AI31: 0 | AJ31: 0 | AK31: 0 | AL31: 0
J32: 0 | N32: 0 | P32: 0 | W32: 0 | X32: 0 | Y32: 0 | Z32: 0 | AA32: 0 | AB32: 0 | AC32: 0 | AD32: 0 | AE32: 0 | AF32: 0 | AG32: 0 | AH32: 0 | AI32: 0 | AJ32: 0 | AK32: =IF(A33=A32,0,SUMIF($A$4:$A$4794,$A32,AB$4:AB$4794))+IF(A33=A32,0,SUMIF($A$4:$A$4794,$A32,AI$4:AI$4794)) -> 0 | AL32: =IF(A33=A32,0,SUMIF($A$4:$A$4794,$A32,J$4:J$4794))+IF(A33=A32,0,SUMIF($A$4:$A$4794,$A32)) -> 0
A33: Totals - Detail | J33: =SUBTOTAL(9,J4:J32) -> 2642 | K33: =SUBTOTAL(9,K4:K32) -> 18 | P33: =SUBTOTAL(9,P4:P32) -> 4249.62 | W33: =SUBTOTAL(9,W4:W32) -> 974.35 | X33: 5223.97 | Y33: 573077.22 | Z33: 5894.27 | AA33: 10656.19 | AB33: 589627.68 | AC33: 115167.01 | AD33: 0 | AE33: 2671.96 | AF33: 6605 | AG33: 4331.64 | AH33: 8104.38 | AI33: 136879.99 | AJ33: 726507.67 | AK33: 726507.67 | AL33: 2642
A34: 1 | E34: SL Supported Living | J34: =SUMIF($E$4:$E$31,$E$34,J4:J31) -> 1630 | K34: =SUMIF($E$4:$E$31,$E$34,K4:K31) -> 12 | P34: =SUMIF($E$4:$E$31,$E$34,P4:P31) -> 2747.54 | W34: =SUMIF($E$4:$E$31,$E$34,W4:W31) -> 605.5 | X34: 3353.04 | Y34: 324082.8 | Z34: 4491.52 | AA34: 6028.16 | AB34: 334602.48 | AC34: 57453.82 | AD34: 0 | AE34: 1510.88 | AF34: 4075 | AG34: 4331.64 | AH34: 7199.38 | AI34: 74570.72 | AJ34: 409173.2 | AK34: 409173.2 | AL34: 1630
A35: 2 | E35: GH Group Home | J35: =SUMIF($E$4:$E$31,$E$35,J4:J32) -> 543 | K35: =SUMIF($E$4:$E$31,$E$35,K4:K32) -> 3 | P35: =SUMIF($E$4:$E$31,$E$35,P4:P32) -> 680.1 | W35: =SUMIF($E$4:$E$31,$E$35,W4:W32) -> 182.52 | X35: 862.62 | Y35: 119474.48 | Z35: 1402.75 | AA35: 2220.87 | AB35: 123098.1 | AC35: 30668.64 | AD35: 0 | AE35: 557.48 | AF35: 1357.5 | AG35: 0 | AH35: 452.5 | AI35: 33036.12 | AJ35: 156134.22 | AK35: 156134.22 | AL35: 543
A36: 3 | E36: GTH Group Training Home | J36: =SUMIF($E$4:$E$31,$E$36,J4:J31) -> 469 | K36: =SUMIF($E$4:$E$31,$E$36,K4:K31) -> 3 | P36: =SUMIF($E$4:$E$31,$E$36,P4:P31) -> 821.98 | W36: =SUMIF($E$4:$E$31,$E$36,W4:W31) -> 186.33 | X36: 1008.31 | Y36: 129519.94 | Z36: 0 | AA36: 2407.16 | AB36: 131927.1 | AC36: 27044.55 | AD36: 0 | AE36: 603.6 | AF36: 1172.5 | AG36: 0 | AH36: 452.5 | AI36: 29273.15 | AJ36: 161200.25 | AK36: 161200.25 | AL36: 469
A37: DSHS/DDA Schedule H Rate History (Rev. 08/2024)

Sheet COCA

Sheet YE Schedule H Rate History
A1: Program Name | D1: 3S - ABC Residential Services | F1: Provider ID | H1: =VLOOKUP(D1,List!A2:C141,2) -> 555777999 | L1: FOR PROVIDER USE ONLY DO NOT SUBMIT WITH COST REPORT
A2: Report Period | D2: 2025-01-01 | F2: 2025-12-31 | J2: =IF($AD$1="",SUM(J4:J44),SUMIF($E$4:$E$44,$AD$1,J4:J44)) -> 5868 | K2: =IF($AD$1="",SUM(K4:K44),SUMIF($E$4:$E$44,$AD$1,K4:K44)) -> 22 | L2: Annual Totals | Y2: =IF($AD$1="",SUM(Y4:Y44),SUMIF($E$4:$E$44,$AD$1,Y4:Y44)) -> 1290135.61 | Z2: 11016.83 | AA2: 24381.02 | AB2: 1325533.46 | AC2: 254136.73 | AD2: 0 | AE2: 6111.69 | AF2: 14612.5 | AG2: 11102.2 | AH2: 21183.71 | AI2: 307146.83 | AJ2: 1632680.29 | AK2: 1632680.29 | AL2: 5868
A3: Client Name (b) | B3: COCA Recipient | C3: Client P1 ID (c) | D3: P1 Service Code/RAC (v) | E3: Program Type | F3: Rate Effective Date (d) | G3: Actual Start Date Overrides Column F | H3: Rate End Date | I3: Actual End Date Overrides Column H | J3: Resid Days Paid | K3: Client Count | L3: ISS Tier Level (e) | M3: ISS Daily Tier Rate (f) | N3: ISS Prof Svs Daily Rate (k) | O3: ISS CRST Tier Rate (l) | P3: Total ISS Daily Rate | Q3: Admin Tier Rate (n) | R3: Temp Rate Adjust (o) | S3: Admin CRST Tier Rate (p) | T3: Admin Cert Rate (q) | U3: Transport Rate (r) | V3: Other Non-ISS Rates (s) | W3: Total Non-ISS Daily Rate | X3: Total ISS & Non-ISS Daily Rate | Y3: Annual ISS Paid | Z3: Annual ISS Prof Svs Paid | AA3: Annual ISS CRST Paid | AB3: Total Annual ISS Paid | AC3: Annual Admin Paid | AD3: Annual Temp Rate Adjust | AE3: Annual Admin CRST Paid | AF3: Annual Admin Cert Paid | AG3: Annual Transport Paid | AH3: Annual Other Non-ISS Paid | AI3: Total Annual Non-ISS Paid | AJ3: Annual ISS & Non-ISS Paid | AK3: Annual ISS & Non-ISS Paid per Client | AL3: Annual Days Paid per Client
A4: Client A | C4: 500 | D4: SA722-3603 GH CORE | E4: GH Group Home | F4: 2025-01-01 | H4: 2025-12-31 | I4: 2025-11-25 | J4: =IF(F4>0,+IF(I4>0,I4,H4)-IF(G4>0,G4,F4)+1,0) -> 329 | K4: =IF(C4<=0,"",IF(C4=C3,"",1)) -> 1 | L4: 4 | M4: 291.71 | N4: 0 | O4: 5.42 | P4: =SUM(M4:O4) -> 297.13 | Q4: 57.97 | R4: 0 | S4: 1.36 | T4: 2.5 | U4: 0 | V4: 0 | W4: =SUM(Q4:V4) -> 61.83 | X4: =+P4+W4 -> 358.96 | Y4: =M4*J4 -> 95972.59 | Z4: =J4*N4 -> 0 | AA4: =O4*J4 -> 1783.18 | AB4: =$J4*P4 -> 97755.77 | AC4: 19072.13 | AD4: 0 | AE4: 447.44 | AF4: 822.5 | AG4: 0 | AH4: 0 | AI4: 20342.07 | AJ4: =AB4+AI4 -> 118097.84 | AK4: =IF(A5=A4,0,SUMIF($A$4:$A$4806,$A4,AB$4:AB$4806))+IF(A5=A4,0,SUMIF($A$4:$A$4806,$A4,AI$4:AI$4806)) -> 118097.84 | AL4: =IF(A5=A4,0,SUMIF($A$4:$A$4806,$A4,J$4:J$4806))+IF(A5=A4,0,SUMIF($A$4:$A$4806,$A4)) -> 329
A5: Client B | C5: 502 | D5: SA722-3603 GH CORE | E5: GH Group Home | F5: 2025-01-01 | H5: 2025-12-31 | J5: =IF(F5>0,+IF(I5>0,I5,H5)-IF(G5>0,G5,F5)+1,0) -> 365 | K5: =IF(C5<=0,"",IF(C5=C4,"",1)) -> 1 | L5: 3 | M5: 223.56 | N5: 0 | O5: 4.16 | P5: 227.72 | Q5: 56.63 | R5: 0 | S5: 1.04 | T5: 2.5 | U5: 0 | V5: 0 | W5: =SUM(Q5:V5) -> 60.17 | X5: =+P5+W5 -> 287.89 | Y5: 81599.4 | Z5: 0 | AA5: 1518.4 | AB5: =$J5*P5 -> 83117.8 | AC5: =$J5*Q5 -> 20669.95 | AD5: =$J5*R5 -> 0 | AE5: =$J5*S5 -> 379.6 | AF5: =$J5*T5 -> 912.5 | AG5: =$J5*U5 -> 0 | AH5: =$J5*V5 -> 0 | AI5: =$J5*W5 -> 21962.05 | AJ5: =AB5+AI5 -> 105079.85 | AK5: 105079.85 | AL5: 365
A6: Client C | C6: 503 | D6: SA722-3603 GH CORE | E6: GH Group Home | F6: 2025-01-01 | H6: 2025-06-30 | J6: 181 | K6: 1 | L6: 2 | M6: 144.81 | N6: 7.75 | O6: 2.69 | P6: 155.25 | Q6: 54.84 | R6: 0 | S6: 0.68 | T6: 2.5 | U6: 0 | V6: 2.5 | W6: 60.52 | X6: 215.77 | Y6: 26210.61 | Z6: 1402.75 | AA6: 486.89 | AB6: 28100.25 | AC6: 9926.04 | AD6: 0 | AE6: 123.08 | AF6: 452.5 | AG6: 0 | AH6: 452.5 | AI6: 10954.12 | AJ6: 39054.37 | AK6: 0 | AL6: 0
A7: Client C | C7: 503 | D7: SA722-3603 GH CORE | E7: GH Group Home | F7: 2025-07-01 | H7: 2025-12-31 | J7: 184 | L7: 2 | M7: 144.81 | N7: 0 | O7: 2.69 | P7: 147.5 | Q7: 54.84 | R7: 0 | S7: 0.68 | T7: 2.5 | U7: 0 | V7: 0 | W7: 58.02 | X7: 205.52 | Y7: 26645.04 | Z7: 0 | AA7: 494.96 | AB7: 27140 | AC7: 10090.56 | AD7: 0 | AE7: 125.12 | AF7: 460 | AG7: 0 | AH7: 0 | AI7: 10675.68 | AJ7: 37815.68 | AK7: 76870.05 | AL7: 365
A8: Client D | C8: 505 | D8: SA722-3905 GTH State | E8: GTH Group Training Home | F8: 2025-01-01 | H8: 2025-12-31 | J8: 365 | K8: 1 | L8: 4 | M8: 291.71 | N8: 0 | O8: 5.42 | P8: 297.13 | Q8: 57.97 | R8: 0 | S8: 1.36 | T8: 2.5 | U8: 0 | V8: 2.5 | W8: 64.33 | X8: 361.46 | Y8: 106474.15 | Z8: 0 | AA8: 1978.3 | AB8: 108452.45 | AC8: 21159.05 | AD8: 0 | AE8: 496.4 | AF8: 912.5 | AG8: 0 | AH8: 912.5 | AI8: 23480.45 | AJ8: 131932.9 | AK8: 131932.9 | AL8: 365
A9: Client E | C9: 506 | D9: SA722-3905 GTH State | E9: GTH Group Training Home | F9: 2025-01-01 | H9: 2025-12-31 | J9: 365 | K9: 1 | L9: 4 | M9: 291.71 | N9: 0 | O9: 5.42 | P9: 297.13 | Q9: 57.97 | R9: 0 | S9: 1.36 | T9: 2.5 | U9: 0 | V9: 0 | W9: 61.83 | X9: 358.96 | Y9: 106474.15 | Z9: 0 | AA9: 1978.3 | AB9: 108452.45 | AC9: 21159.05 | AD9: 0 | AE9: 496.4 | AF9: 912.5 | AG9: 0 | AH9: 0 | AI9: 22567.95 | AJ9: 131020.4 | AK9: 131020.4 | AL9: 365
A10: Client F | C10: 508 | D10: SA722-3603 GTH CORE | E10: GTH Group Training Home | F10: 2025-03-16 | H10: 2025-12-31 | J10: 291 | K10: 1 | L10: 3 | M10: 223.56 | N10: 0 | O10: 4.16 | P10: 227.72 | Q10: 56.63 | R10: 0 | S10: 1.04 | T10: 2.5 | U10: 0 | V10: 0 | W10: 60.17 | X10: 287.89 | Y10: 65055.96 | Z10: 0 | AA10: 1210.56 | AB10: 66266.52 | AC10: 16479.33 | AD10: 0 | AE10: 302.64 | AF10: 727.5 | AG10: 0 | AH10: 0 | AI10: 17509.47 | AJ10: 83775.99 | AK10: 83775.99 | AL10: 291
A11: Client 01 | C11: 509 | D11: SA716-3603 SL CORE | E11: SL Supported Living | F11: 2025-01-01 | H11: 2025-12-31 | J11: 365 | K11: 1 | L11: 2 | M11: 144.81 | N11: 0 | O11: 2.69 | P11: 147.5 | Q11: 34.02 | R11: 0 | S11: 0.68 | T11: 2.5 | U11: 2.25 | V11: 2.5 | W11: 41.95 | X11: 189.45 | Y11: 52855.65 | Z11: 0 | AA11: 981.85 | AB11: 53837.5 | AC11: 12417.3 | AD11: 0 | AE11: 248.2 | AF11: 912.5 | AG11: 821.25 | AH11: 912.5 | AI11: 15311.75 | AJ11: 69149.25 | AK11: 69149.25 | AL11: 365
A12: Client 02 | C12: 510 | D12: SA716-3603 SL CORE | E12: SL Supported Living | F12: 2025-01-01 | H12: 2025-12-31 | I12: 2025-07-02 | J12: 183 | K12: 1 | L12: 3 | M12: 223.56 | N12: 9.28 | O12: 4.16 | P12: 237 | Q12: 35.81 | R12: 0 | S12: 1.04 | T12: 2.5 | U12: 2.25 | V12: 13.87 | W12: 55.47 | X12: 292.47 | Y12: 40911.48 | Z12: 1698.24 | AA12: 761.28 | AB12: 43371 | AC12: 6553.23 | AD12: 0 | AE12: 190.32 | AF12: 457.5 | AG12: 411.75 | AH12: 2538.21 | AI12: 10151.01 | AJ12: 53522.01 | AK12: 0 | AL12: 0
A13: Client 02 | B13: Client 8 | C13: 510 | D13: SA716-3603 SL CORE | E13: SL Supported Living | F13: 2025-07-03 | H13: 2025-07-25 | J13: 23 | L13: 3 | M13: 139.66 | N13: 9.28 | O13: 3.17 | P13: 152.11 | Q13: 37.23 | R13: 0 | S13: 0.79 | T13: 0 | U13: 0 | V13: 0 | W13: 38.02 | X13: 190.13 | Y13: 3212.18 | Z13: 213.44 | AA13: 72.91 | AB13: 3498.53 | AC13: 856.29 | AD13: 0 | AE13: 18.17 | AF13: 0 | AG13: 0 | AH13: 0 | AI13: 874.46 | AJ13: 4372.99 | AK13: 0 | AL13: 0
A14: Client 02 | C14: 510 | D14: SA716-3603 SL CORE | E14: SL Supported Living | F14: 2025-07-26 | H14: 2025-12-31 | J14: 159 | L14: 3 | M14: 223.56 | N14: 9.28 | O14: 4.16 | P14: 237 | Q14: 35.81 | R14: 0 | S14: 1.04 | T14: 2.5 | U14: 2.25 | V14: 13.87 | W14: 55.47 | X14: 292.47 | Y14: 35546.04 | Z14: 1475.52 | AA14: 661.44 | AB14: 37683 | AC14: 5693.79 | AD14: 0 | AE14: 165.36 | AF14: 397.5 | AG14: 357.75 | AH14: 2205.33 | AI14: 8819.73 | AJ14: 46502.73 | AK14: 104397.73 | AL14: 365
A15: Client 03 | C15: 511 | D15: SA716-3603 SL CORE | E15: SL Supported Living | F15: 2025-08-01 | G15: 2025-08-03 | H15: 2025-12-31 | I15: 2025-10-31 | J15: 90 | K15: 1 | L15: 2 | M15: 144.81 | N15: 0 | O15: 2.69 | P15: 147.5 | Q15: 34.02 | R15: 0 | S15: 0.68 | T15: 2.5 | U15: 1.85 | V15: 7.9 | W15: 46.95 | X15: 194.45 | Y15: 13032.9 | Z15: 0 | AA15: 242.1 | AB15: 13275 | AC15: 3061.8 | AD15: 0 | AE15: 61.2 | AF15: 225 | AG15: 166.5 | AH15: 711 | AI15: 4225.5 | AJ15: 17500.5 | AK15: 0 | AL15: 0
A16: Client 03 | C16: 511 | D16: SA716-3603 SL CORE | E16: SL Supported Living | F16: 2025-11-01 | H16: 2025-12-31 | J16: 61 | L16: 2 | M16: 144.81 | N16: 0 | O16: 2.69 | P16: 147.5 | Q16: 34.02 | R16: 0 | S16: 0.68 | T16: 2.5 | U16: 3.5 | V16: 10.44 | W16: 51.14 | X16: 198.64 | Y16: 8833.41 | Z16: 0 | AA16: 164.09 | AB16: 8997.5 | AC16: 2075.22 | AD16: 0 | AE16: 41.48 | AF16: 152.5 | AG16: 213.5 | AH16: 636.84 | AI16: 3119.54 | AJ16: 12117.04 | AK16: 29617.54 | AL16: 151
A17: Client 04 | C17: 512 | D17: SA716-3603 SL CORE | E17: SL Supported Living | F17: 2025-01-01 | H17: 2025-12-31 | I17: 2025-02-28 | J17: 59 | K17: 1 | L17: 3 | M17: 223.56 | N17: 0 | O17: 4.16 | P17: 227.72 | Q17: 35.81 | R17: 0 | S17: 1.04 | T17: 2.5 | U17: 1.85 | V17: 10.44 | W17: 51.64 | X17: 279.36 | Y17: 13190.04 | Z17: 0 | AA17: 245.44 | AB17: 13435.48 | AC17: 2112.79 | AD17: 0 | AE17: 61.36 | AF17: 147.5 | AG17: 109.15 | AH17: 615.96 | AI17: 3046.76 | AJ17: 16482.24 | AK17: 0 | AL17: 0
A18: Client 04 | C18: 512 | D18: SA716-3603 SL CORE | E18: SL Supported Living | F18: 2025-03-01 | H18: 2025-12-31 | J18: 306 | L18: 3 | M18: 223.56 | N18: 9.28 | O18: 4.16 | P18: 237 | Q18: 35.81 | R18: 0 | S18: 1.04 | T18: 2.5 | U18: 4.58 | V18: 7.9 | W18: 51.83 | X18: 288.83 | Y18: 68409.36 | Z18: 2839.68 | AA18: 1272.96 | AB18: 72522 | AC18: 10957.86 | AD18: 0 | AE18: 318.24 | AF18: 765 | AG18: 1401.48 | AH18: 2417.4 | AI18: 15859.98 | AJ18: 88381.98 | AK18: 104864.22 | AL18: 365
A19: Client 05 | C19: 513 | D19: SA716-3603 SL CORE | E19: SL Supported Living | F19: 2025-01-01 | H19: 2025-12-31 | I19: 2025-01-21 | J19: 21 | K19: 1 | L19: 3 | M19: 223.56 | N19: 0 | O19: 4.16 | P19: 227.72 | Q19: 35.81 | R19: 0 | S19: 1.04 | T19: 2.5 | U19: 1.88 | V19: 2.5 | W19: 43.73 | X19: 271.45 | Y19: 4694.76 | Z19: 0 | AA19: 87.36 | AB19: 4782.12 | AC19: 752.01 | AD19: 0 | AE19: 21.84 | AF19: 52.5 | AG19: 39.48 | AH19: 52.5 | AI19: 918.33 | AJ19: 5700.45 | AK19: 5700.45 | AL19: 21
A20: Client 06 | C20: 514 | D20: SA716-3603 SL CORE | E20: SL Supported Living | F20: 2025-05-18 | G20: 2025-05-15 | H20: 2025-12-31 | J20: 231 | K20: 1 | L20: 3 | M20: 223.56 | N20: 0 | O20: 4.16 | P20: 227.72 | Q20: 35.81 | R20: 0 | S20: 1.04 | T20: 2.5 | U20: 2.35 | V20: 0 | W20: 41.7 | X20: 269.42 | Y20: 51642.36 | Z20: 0 | AA20: 960.96 | AB20: 52603.32 | AC20: 8272.11 | AD20: 0 | AE20: 240.24 | AF20: 577.5 | AG20: 542.85 | AH20: 0 | AI20: 9632.7 | AJ20: 62236.02 | AK20: 62236.02 | AL20: 231
A21: Client 07 | C21: 515 | D21: SA716-3603 SL CORE | E21: SL Supported Living | F21: 2025-01-01 | H21: 2025-06-30 | J21: 181 | K21: 1 | L21: 2 | M21: 144.81 | N21: 0 | O21: 2.69 | P21: 147.5 | Q21: 34.02 | R21: 0 | S21: 0.68 | T21: 2.5 | U21: 2.5 | V21: 2.5 | W21: 42.2 | X21: 189.7 | Y21: 26210.61 | Z21: 0 | AA21: 486.89 | AB21: 26697.5 | AC21: 6157.62 | AD21: 0 | AE21: 123.08 | AF21: 452.5 | AG21: 452.5 | AH21: 452.5 | AI21: 7638.2 | AJ21: 34335.7 | AK21: 0 | AL21: 0
A22: Client 07 | C22: 515 | D22: SA716-3603 SL CORE | E22: SL Supported Living | F22: 2025-07-01 | H22: 2025-12-31 | I22: 2025-08-16 | J22: 47 | L22: 2 | M22: 144.81 | N22: 0 | O22: 2.69 | P22: 147.5 | Q22: 34.02 | R22: 0 | S22: 0.68 | T22: 2.5 | U22: 2.5 | V22: 10.44 | W22: 50.14 | X22: 197.64 | Y22: 6806.07 | Z22: 0 | AA22: 126.43 | AB22: 6932.5 | AC22: 1598.94 | AD22: 0 | AE22: 31.96 | AF22: 117.5 | AG22: 117.5 | AH22: 490.68 | AI22: 2356.58 | AJ22: 9289.08 | AK22: 43624.78 | AL22: 228
A23: Client 08 | C23: 518 | D23: SA716-3603 SL CORE | E23: SL Supported Living | F23: 2025-01-01 | H23: 2025-12-31 | J23: 365 | K23: 1 | L23: 3 | M23: 223.56 | N23: 9.28 | O23: 4.16 | P23: 237 | Q23: 35.81 | R23: 0 | S23: 1.04 | T23: 2.5 | U23: 3.2 | V23: 7.9 | W23: 50.45 | X23: 287.45 | Y23: 81599.4 | Z23: 3387.2 | AA23: 1518.4 | AB23: 86505 | AC23: 13070.65 | AD23: 0 | AE23: 379.6 | AF23: 912.5 | AG23: 1168 | AH23: 2883.5 | AI23: 18414.25 | AJ23: 104919.25 | AK23: 104919.25 | AL23: 365
A24: Client 09 | C24: 519 | D24: SA716-3603 SL CORE | E24: SL Supported Living | F24: 2025-08-01 | G24: 2025-08-15 | H24: 2025-12-31 | I24: 2025-09-30 | J24: 47 | K24: 1 | L24: 5 | M24: 364.4 | N24: 0 | O24: 6.78 | P24: 371.18 | Q24: 40.9 | R24: 0 | S24: 1.69 | T24: 2.5 | U24: 2.25 | V24: 0 | W24: 47.34 | X24: 418.52 | Y24: 17126.8 | Z24: 0 | AA24: 318.66 | AB24: 17445.46 | AC24: 1922.3 | AD24: 0 | AE24: 79.43 | AF24: 117.5 | AG24: 105.75 | AH24: 0 | AI24: 2224.98 | AJ24: 19670.44 | AK24: 0 | AL24: 0
A25: Client 09 | C25: 519 | D25: SA716-3603 SL CORE | E25: SL Supported Living | F25: 2025-10-01 | H25: 2025-12-31 | J25: 92 | L25: 3 | M25: 223.56 | N25: 0 | O25: 4.16 | P25: 227.72 | Q25: 35.81 | R25: 0 | S25: 1.04 | T25: 2.5 | U25: 2.25 | V25: 0 | W25: 41.6 | X25: 269.32 | Y25: 20567.52 | Z25: 0 | AA25: 382.72 | AB25: 20950.24 | AC25: 3294.52 | AD25: 0 | AE25: 95.68 | AF25: 230 | AG25: 207 | AH25: 0 | AI25: 3827.2 | AJ25: 24777.44 | AK25: 44447.88 | AL25: 139
A26: Client 10 | C26: 520 | D26: SA716-3603 SL CORE | E26: SL Supported Living | F26: 2025-01-01 | H26: 2025-12-31 | I26: 2025-09-04 | J26: 247 | K26: 1 | L26: 3 | M26: 223.56 | N26: 0 | O26: 4.16 | P26: 227.72 | Q26: 35.81 | R26: 0 | S26: 1.04 | T26: 2.5 | U26: 2.25 | V26: 0 | W26: 41.6 | X26: 269.32 | Y26: 55219.32 | Z26: 0 | AA26: 1027.52 | AB26: 56246.84 | AC26: 8845.07 | AD26: 0 | AE26: 256.88 | AF26: 617.5 | AG26: 555.75 | AH26: 0 | AI26: 10275.2 | AJ26: 66522.04 | AK26: 66522.04 | AL26: 247
A27: Client 11 | C27: 521 | D27: SA716-3603 SL CORE | E27: SL Supported Living | F27: 2025-01-01 | H27: 2025-12-31 | J27: 365 | K27: 1 | L27: 3 | M27: 223.56 | N27: 0 | O27: 4.16 | P27: 227.72 | Q27: 35.81 | R27: 0 | S27: 1.04 | T27: 2.5 | U27: 1.85 | V27: 0 | W27: 41.2 | X27: 268.92 | Y27: 81599.4 | Z27: 0 | AA27: 1518.4 | AB27: 83117.8 | AC27: 13070.65 | AD27: 0 | AE27: 379.6 | AF27: 912.5 | AG27: 675.25 | AH27: 0 | AI27: 15038 | AJ27: 98155.8 | AK27: 98155.8 | AL27: 365
A28: Client 12 | C28: 522 | D28: SA716-3603 SL CORE | E28: SL Supported Living | F28: 2025-07-01 | H28: 2025-12-31 | I28: 2025-08-31 | J28: 62 | K28: 1 | L28: 3 | M28: 223.56 | N28: 0 | O28: 4.16 | P28: 227.72 | Q28: 35.81 | R28: 0 | S28: 1.04 | T28: 2.5 | U28: 4.58 | V28: 10.44 | W28: 54.37 | X28: 282.09 | Y28: 13860.72 | Z28: 0 | AA28: 257.92 | AB28: 14118.64 | AC28: 2220.22 | AD28: 0 | AE28: 64.48 | AF28: 155 | AG28: 283.96 | AH28: 647.28 | AI28: 3370.94 | AJ28: 17489.58 | AK28: 0 | AL28: 0
A29: Client 12 | C29: 522 | D29: SA716-3603 SL CORE | E29: SL Supported Living | F29: 2025-09-01 | H29: 2025-12-31 | J29: 122 | L29: 4 | M29: 291.71 | N29: 0 | O29: 5.42 | P29: 297.13 | Q29: 37.15 | R29: 0 | S29: 1.36 | T29: 2.5 | U29: 4.25 | V29: 10.44 | W29: 55.7 | X29: 352.83 | Y29: 35588.62 | Z29: 0 | AA29: 661.24 | AB29: 36249.86 | AC29: 4532.3 | AD29: 0 | AE29: 165.92 | AF29: 305 | AG29: 518.5 | AH29: 1273.68 | AI29: 6795.4 | AJ29: 43045.26 | AK29: 60534.84 | AL29: 184
A30: Client 13 | C30: 523 | D30: SA716-3603 SL CORE | E30: SL Supported Living | F30: 2025-02-01 | H30: 2025-12-31 | I30: 2025-09-30 | J30: 242 | K30: 1 | L30: 2 | M30: 144.81 | N30: 0 | O30: 2.69 | P30: 147.5 | Q30: 34.02 | R30: 0 | S30: 0.68 | T30: 2.5 | U30: 3.25 | V30: 2.5 | W30: 42.95 | X30: 190.45 | Y30: 35044.02 | Z30: 0 | AA30: 650.98 | AB30: 35695 | AC30: 8232.84 | AD30: 0 | AE30: 164.56 | AF30: 605 | AG30: 786.5 | AH30: 605 | AI30: 10393.9 | AJ30: 46088.9 | AK30: 0 | AL30: 0
A31: Client 13 | C31: 523 | D31: SA716-3603 SL CORE | E31: SL Supported Living | F31: 2025-10-01 | H31: 2025-12-31 | J31: 92 | L31: 2 | M31: 144.81 | N31: 0 | O31: 2.69 | P31: 147.5 | Q31: 34.02 | R31: 0 | S31: 0.68 | T31: 2.5 | U31: 1.88 | V31: 2.5 | W31: 41.58 | X31: 189.08 | Y31: 13322.52 | Z31: 0 | AA31: 247.48 | AB31: 13570 | AC31: 3129.84 | AD31: 0 | AE31: 62.56 | AF31: 230 | AG31: 172.96 | AH31: 230 | AI31: 3825.36 | AJ31: 17395.36 | AK31: 63484.26 | AL31: 334
A32: Client 14 | C32: 533 | D32: SA716-3603 SL CORE | E32: SL Supported Living | F32: 2025-06-05 | G32: 2025-06-06 | H32: 2025-12-31 | J32: 209 | K32: 1 | L32: 3 | M32: 223.56 | N32: 0 | O32: 4.16 | P32: 227.72 | Q32: 35.81 | R32: 0 | S32: 1.04 | T32: 2.5 | U32: 5.76 | V32: 13.87 | W32: 58.98 | X32: 286.7 | Y32: 46724.04 | Z32: 0 | AA32: 869.44 | AB32: 47593.48 | AC32: 7484.29 | AD32: 0 | AE32: 217.36 | AF32: 522.5 | AG32: 1203.84 | AH32: 2898.83 | AI32: 12326.82 | AJ32: 59920.3 | AK32: 59920.3 | AL32: 209
A33: Client 15 | C33: 535 | D33: SA716-3603 SL CORE | E33: SL Supported Living | F33: 2025-09-24 | H33: 2025-12-31 | J33: 99 | K33: 1 | L33: 7 | M33: 291.71 | N33: 0 | O33: 9.24 | P33: 300.95 | Q33: 50.22 | R33: 0 | S33: 2.31 | T33: 2.5 | U33: 5.02 | V33: 2.5 | W33: 62.55 | X33: 363.5 | Y33: 28879.29 | Z33: 0 | AA33: 914.76 | AB33: 29794.05 | AC33: 4971.78 | AD33: 0 | AE33: 228.69 | AF33: 247.5 | AG33: 496.98 | AH33: 247.5 | AI33: 6192.45 | AJ33: 35986.5 | AK33: 35986.5 | AL33: 99
A34: Client 16 | C34: 536 | D34: SA716-3603 SL CORE | E34: SL Supported Living | F34: 2025-01-01 | H34: 2025-12-31 | I34: 2025-04-30 | J34: 120 | K34: 1 | L34: 3 | M34: 223.56 | N34: 0 | O34: 4.16 | P34: 227.72 | Q34: 35.81 | R34: 0 | S34: 1.04 | T34: 2.5 | U34: 2.45 | V34: 0 | W34: 41.8 | X34: 269.52 | Y34: 26827.2 | Z34: 0 | AA34: 499.2 | AB34: 27326.4 | AC34: 4297.2 | AD34: 0 | AE34: 124.8 | AF34: 300 | AG34: 294 | AH34: 0 | AI34: 5016 | AJ34: 32342.4 | AK34: 32342.4 | AL34: 120
J35: 0 | P35: 0 | W35: 0 | X35: 0 | Y35: 0 | Z35: 0 | AA35: 0 | AB35: 0 | AC35: 0 | AD35: 0 | AE35: 0 | AF35: 0 | AG35: 0 | AH35: 0 | AI35: 0 | AJ35: 0 | AK35: 0 | AL35: 0
J36: 0 | P36: 0 | W36: 0 | X36: 0 | Y36: 0 | Z36: 0 | AA36: 0 | AB36: 0 | AC36: 0 | AD36: 0 | AE36: 0 | AF36: 0 | AG36: 0 | AH36: 0 | AI36: 0 | AJ36: 0 | AK36: 0 | AL36: 0
J37: 0 | P37: 0 | W37: 0 | X37: 0 | Y37: 0 | Z37: 0 | AA37: 0 | AB37: 0 | AC37: 0 | AD37: 0 | AE37: 0 | AF37: 0 | AG37: 0 | AH37: 0 | AI37: 0 | AJ37: 0 | AK37: 0 | AL37: 0
J38: 0 | P38: 0 | W38: 0 | X38: 0 | Y38: 0 | Z38: 0 | AA38: 0 | AB38: 0 | AC38: 0 | AD38: 0 | AE38: 0 | AF38: 0 | AG38: 0 | AH38: 0 | AI38: 0 | AJ38: 0 | AK38: 0 | AL38: 0
J39: 0 | P39: 0 | W39: 0 | X39: 0 | Y39: 0 | Z39: 0 | AA39: 0 | AB39: 0 | AC39: 0 | AD39: 0 | AE39: 0 | AF39: 0 | AG39: 0 | AH39: 0 | AI39: 0 | AJ39: 0 | AK39: 0 | AL39: 0
J40: 0 | P40: 0 | W40: 0 | X40: 0 | Y40: 0 | Z40: 0 | AA40: 0 | AB40: 0 | AC40: 0 | AD40: 0 | AE40: 0 | AF40: 0 | AG40: 0 | AH40: 0 | AI40: 0 | AJ40: 0 | AK40: 0 | AL40: 0
J41: 0 | P41: 0 | W41: 0 | X41: 0 | Y41: 0 | Z41: 0 | AA41: 0 | AB41: 0 | AC41: 0 | AD41: 0 | AE41: 0 | AF41: 0 | AG41: 0 | AH41: 0 | AI41: 0 | AJ41: 0 | AK41: 0 | AL41: 0
J42: 0 | P42: 0 | W42: 0 | X42: 0 | Y42: 0 | Z42: 0 | AA42: 0 | AB42: 0 | AC42: 0 | AD42: 0 | AE42: 0 | AF42: 0 | AG42: 0 | AH42: 0 | AI42: 0 | AJ42: 0 | AK42: 0 | AL42: 0
J43: 0 | P43: 0 | W43: 0 | X43: 0 | Y43: 0 | Z43: 0 | AA43: 0 | AB43: 0 | AC43: 0 | AD43: 0 | AE43: 0 | AF43: 0 | AG43: 0 | AH43: 0 | AI43: 0 | AJ43: 0 | AK43: 0 | AL43: 0
J44: 0 | N44: 0 | P44: 0 | W44: 0 | X44: 0 | Y44: 0 | Z44: 0 | AA44: 0 | AB44: =$J44*P44 -> 0 | AC44: 0 | AD44: 0 | AE44: 0 | AF44: 0 | AG44: 0 | AH44: 0 | AI44: 0 | AJ44: 0 | AK44: 0 | AL44: 0
A45: Totals - Detail | J45: =SUBTOTAL(9,J4:J44) -> 5868 | K45: =SUBTOTAL(9,K4:K44) -> 22 | P45: =SUBTOTAL(9,P4:P44) -> 6800.93 | W45: =SUBTOTAL(9,W4:W44) -> 1577.23 | X45: 8378.16 | Y45: 1290135.61 | Z45: =SUBTOTAL(9,Z4:Z44) -> 11016.83 | AA45: 24381.02 | AB45: 1325533.46 | AC45: 254136.73 | AD45: 0 | AE45: 6111.69 | AF45: 14612.5 | AG45: 11102.2 | AH45: 21183.71 | AI45: 307146.83 | AJ45: 1632680.29 | AK45: 1632680.29 | AL45: 5868
A46: 1 | E46: SL Supported Living | J46: =SUMIF($E$4:$E$43,$E$46,J4:J43) -> 3788 | K46: =SUMIF($E$4:$E$43,$E$46,K4:K43) -> 16 | P46: =SUMIF($E$4:$E$43,$E$46,P4:P43) -> 5151.35 | W46: =SUMIF($E$4:$E$43,$E$46,W4:W43) -> 1150.36 | X46: 6301.71 | Y46: 781703.71 | Z46: =SUMIF($E$4:$E$43,$E$46,Z4:Z43) -> 9614.08 | AA46: 14930.43 | AB46: 806248.22 | AC46: 135580.62 | AD46: 0 | AE46: 3741.01 | AF46: 9412.5 | AG46: 11102.2 | AH46: 19818.71 | AI46: 179655.04 | AJ46: 985903.26 | AK46: 985903.26 | AL46: 3788
A47: 2 | E47: GH Group Home | J47: =SUMIF($E$4:$E$43,$E$47,J4:J44) -> 1059 | K47: =SUMIF($E$4:$E$43,$E$47,K4:K44) -> 3 | P47: =SUMIF($E$4:$E$43,$E$47,P4:P44) -> 827.6 | W47: =SUMIF($E$4:$E$43,$E$47,W4:W44) -> 240.54 | X47: 1068.14 | Y47: 230427.64 | Z47: =SUMIF($E$4:$E$43,$E$47,Z4:Z44) -> 1402.75 | AA47: 4283.43 | AB47: 236113.82 | AC47: 59758.68 | AD47: 0 | AE47: 1075.24 | AF47: 2647.5 | AG47: 0 | AH47: 452.5 | AI47: 63933.92 | AJ47: 300047.74 | AK47: 300047.74 | AL47: 1059
A48: 3 | E48: GTH Group Training Home | J48: =SUMIF($E$4:$E$43,$E$48,J4:J43) -> 1021 | K48: =SUMIF($E$4:$E$43,$E$48,K4:K43) -> 3 | P48: =SUMIF($E$4:$E$43,$E$48,P4:P43) -> 821.98 | W48: =SUMIF($E$4:$E$43,$E$48,W4:W43) -> 186.33 | X48: 1008.31 | Y48: 278004.26 | Z48: =SUMIF($E$4:$E$43,$E$48,Z4:Z43) -> 0 | AA48: 5167.16 | AB48: 283171.42 | AC48: 58797.43 | AD48: 0 | AE48: 1295.44 | AF48: 2552.5 | AG48: 0 | AH48: 912.5 | AI48: 63557.87 | AJ48: 346729.29 | AK48: 346729.29 | AL48: 1021
A49: DSHS/DDA Schedule H Rate History (Rev. 08/2024)

Sheet 2026 JAN
A1: Program Name | D1: 3S - ABC Residential Services | F1: Provider ID | H1: =VLOOKUP(D1,List!A2:C141,2) -> 555777999 | L1: FOR PROVIDER USE ONLY DO NOT SUBMIT WITH COST REPORT
A2: Report Period | D2: 2026-01-01 | F2: 2026-12-31 | J2: =IF($AD$1="",SUM(J4:J31),SUMIF($E$4:$E$31,$AD$1,J4:J31)) -> 6570 | K2: =IF($AD$1="",SUM(K4:K31),SUMIF($E$4:$E$31,$AD$1,K4:K31)) -> 18 | L2: Annual Totals | Y2: =IF($AD$1="",SUM(Y4:Y31),SUMIF($E$4:$E$31,$AD$1,Y4:Y31)) -> 1424569.45 | Z2: 10161.6 | AA2: 27882.35 | AB2: 1462613.4 | AC2: 276728.4 | AD2: 0 | AE2: 6989.75 | AF2: 16425 | AG2: 15198.6 | AH2: 30973.9 | AI2: 346315.65 | AJ2: 1808929.05 | AK2: 1808929.05 | AL2: 6570
A3: Client Name (b) | B3: COCA Recipient | C3: Client P1 ID (c) | D3: P1 Service Code/RAC (v) | E3: Program Type | F3: Rate Effective Date (d) | G3: Actual Start Date Overrides Column F | H3: Rate End Date | I3: Actual End Date Overrides Column H | J3: Resid Days Paid | K3: Client Count | L3: ISS Tier Level (e) | M3: ISS Daily Tier Rate (f) | N3: ISS Prof Svs Daily Rate (k) | O3: ISS CRST Tier Rate (l) | P3: Total ISS Daily Rate | Q3: Admin Tier Rate (n) | R3: Temp Rate Adjust (o) | S3: Admin CRST Tier Rate (p) | T3: Admin Cert Rate (q) | U3: Transport Rate (r) | V3: Other Non-ISS Rates (s) | W3: Total Non-ISS Daily Rate | X3: Total ISS & Non-ISS Daily Rate | Y3: Annual ISS Paid | Z3: Annual ISS Prof Svs Paid | AA3: Annual ISS CRST Paid | AB3: Total Annual ISS Paid | AC3: Annual Admin Paid | AD3: Annual Temp Rate Adjust | AE3: Annual Admin CRST Paid | AF3: Annual Admin Cert Paid | AG3: Annual Transport Paid | AH3: Annual Other Non-ISS Paid | AI3: Total Annual Non-ISS Paid | AJ3: Annual ISS & Non-ISS Paid | AK3: Annual ISS & Non-ISS Paid per Client | AL3: Annual Days Paid per Client
A4: Client B | C4: 502 | D4: SA722-3603 GH CORE | E4: GH Group Home | F4: 2026-01-01 | H4: 2026-12-31 | J4: =IF(F4>0,+IF(I4>0,I4,H4)-IF(G4>0,G4,F4)+1,0) -> 365 | K4: =IF(C4<=0,"",IF(C4=C3,"",1)) -> 1 | L4: 3 | M4: 223.56 | N4: 0 | O4: 4.16 | P4: =SUM(M4:O4) -> 227.72 | Q4: 56.63 | R4: 0 | S4: 1.04 | T4: 2.5 | U4: 0 | V4: 0 | W4: =SUM(Q4:V4) -> 60.17 | X4: =+P4+W4 -> 287.89 | Y4: =M4*J4 -> 81599.4 | Z4: =J4*N4 -> 0 | AA4: =O4*J4 -> 1518.4 | AB4: =$J4*P4 -> 83117.8 | AC4: =$J4*Q4 -> 20669.95 | AD4: =$J4*R4 -> 0 | AE4: =$J4*S4 -> 379.6 | AF4: =$J4*T4 -> 912.5 | AG4: =$J4*U4 -> 0 | AH4: =$J4*V4 -> 0 | AI4: =$J4*W4 -> 21962.05 | AJ4: =AB4+AI4 -> 105079.85 | AK4: =IF(A5=A4,0,SUMIF($A$4:$A$4793,$A4,AB$4:AB$4793))+IF(A5=A4,0,SUMIF($A$4:$A$4793,$A4,AI$4:AI$4793)) -> 105079.85 | AL4: =IF(A5=A4,0,SUMIF($A$4:$A$4793,$A4,J$4:J$4793))+IF(A5=A4,0,SUMIF($A$4:$A$4793,$A4)) -> 365
A5: Client C | C5: 503 | D5: SA722-3603 GH CORE | E5: GH Group Home | F5: 2026-01-01 | H5: 2026-12-31 | J5: =IF(F5>0,+IF(I5>0,I5,H5)-IF(G5>0,G5,F5)+1,0) -> 365 | K5: =IF(C5<=0,"",IF(C5=C4,"",1)) -> 1 | L5: 2 | M5: 144.81 | N5: 0 | O5: 2.69 | P5: 147.5 | Q5: 54.84 | R5: 0 | S5: 0.68 | T5: 2.5 | U5: 0 | V5: 0 | W5: 58.02 | X5: 205.52 | Y5: 52855.65 | Z5: 0 | AA5: 981.85 | AB5: 53837.5 | AC5: 20016.6 | AD5: 0 | AE5: 248.2 | AF5: 912.5 | AG5: 0 | AH5: 0 | AI5: 21177.3 | AJ5: 75014.8 | AK5: 75014.8 | AL5: 365
A6: Client D | C6: 505 | D6: SA722-3905 GTH State | E6: GTH Group Training Home | F6: 2026-01-01 | H6: 2026-12-31 | J6: 365 | K6: 1 | L6: 4 | M6: 291.71 | N6: 0 | O6: 5.42 | P6: 297.13 | Q6: 57.97 | R6: 0 | S6: 1.36 | T6: 2.5 | U6: 0 | V6: 2.5 | W6: 64.33 | X6: 361.46 | Y6: 106474.15 | Z6: 0 | AA6: 1978.3 | AB6: 108452.45 | AC6: 21159.05 | AD6: 0 | AE6: 496.4 | AF6: 912.5 | AG6: 0 | AH6: 912.5 | AI6: 23480.45 | AJ6: 131932.9 | AK6: 131932.9 | AL6: 365
A7: Client E | C7: 506 | D7: SA722-3905 GTH State | E7: GTH Group Training Home | F7: 2026-01-01 | H7: 2026-12-31 | J7: 365 | K7: 1 | L7: 4 | M7: 291.71 | N7: 0 | O7: 5.42 | P7: 297.13 | Q7: 57.97 | R7: 0 | S7: 1.36 | T7: 2.5 | U7: 0 | V7: 0 | W7: 61.83 | X7: 358.96 | Y7: 106474.15 | Z7: 0 | AA7: 1978.3 | AB7: 108452.45 | AC7: 21159.05 | AD7: 0 | AE7: 496.4 | AF7: 912.5 | AG7: 0 | AH7: 0 | AI7: 22567.95 | AJ7: 131020.4 | AK7: 131020.4 | AL7: 365
A8: Client F | C8: 508 | D8: SA722-3603 GTH CORE | E8: GTH Group Training Home | F8: 2026-01-01 | H8: 2026-12-31 | J8: 365 | K8: 1 | L8: 3 | M8: 223.56 | N8: 0 | O8: 4.16 | P8: 227.72 | Q8: 56.63 | R8: 0 | S8: 1.04 | T8: 2.5 | U8: 0 | V8: 0 | W8: 60.17 | X8: 287.89 | Y8: 81599.4 | Z8: 0 | AA8: 1518.4 | AB8: 83117.8 | AC8: 20669.95 | AD8: 0 | AE8: 379.6 | AF8: 912.5 | AG8: 0 | AH8: 0 | AI8: 21962.05 | AJ8: 105079.85 | AK8: 105079.85 | AL8: 365
A9: Client 01 | C9: 509 | D9: SA716-3603 SL CORE | E9: SL Supported Living | F9: 2026-01-01 | H9: 2026-12-31 | J9: 365 | K9: 1 | L9: 2 | M9: 144.81 | N9: 0 | O9: 2.69 | P9: 147.5 | Q9: 34.02 | R9: 0 | S9: 0.68 | T9: 2.5 | U9: 2.25 | V9: 2.5 | W9: 41.95 | X9: 189.45 | Y9: 52855.65 | Z9: 0 | AA9: 981.85 | AB9: 53837.5 | AC9: 12417.3 | AD9: 0 | AE9: 248.2 | AF9: 912.5 | AG9: 821.25 | AH9: 912.5 | AI9: 15311.75 | AJ9: 69149.25 | AK9: 69149.25 | AL9: 365
A10: Client 02 | C10: 510 | D10: SA716-3603 SL CORE | E10: SL Supported Living | F10: 2026-01-01 | H10: 2026-12-31 | J10: 365 | K10: 1 | L10: 3 | M10: 223.56 | N10: 9.28 | O10: 4.16 | P10: 237 | Q10: 35.81 | R10: 0 | S10: 1.04 | T10: 2.5 | U10: 2.25 | V10: 13.87 | W10: 55.47 | X10: 292.47 | Y10: 81599.4 | Z10: 3387.2 | AA10: 1518.4 | AB10: 86505 | AC10: 13070.65 | AD10: 0 | AE10: 379.6 | AF10: 912.5 | AG10: 821.25 | AH10: 5062.55 | AI10: 20246.55 | AJ10: 106751.55 | AK10: 106751.55 | AL10: 365
A11: Client 03 | C11: 511 | D11: SA716-3603 SL CORE | E11: SL Supported Living | F11: 2026-01-01 | H11: 2026-12-31 | J11: 365 | K11: 1 | L11: 2 | M11: 144.81 | N11: 0 | O11: 2.69 | P11: 147.5 | Q11: 34.02 | R11: 0 | S11: 0.68 | T11: 2.5 | U11: 3.5 | V11: 10.44 | W11: 51.14 | X11: 198.64 | Y11: 52855.65 | Z11: 0 | AA11: 981.85 | AB11: 53837.5 | AC11: 12417.3 | AD11: 0 | AE11: 248.2 | AF11: 912.5 | AG11: 1277.5 | AH11: 3810.6 | AI11: 18666.1 | AJ11: 72503.6 | AK11: 72503.6 | AL11: 365
A12: Client 04 | C12: 512 | D12: SA716-3603 SL CORE | E12: SL Supported Living | F12: 2026-01-01 | H12: 2026-12-31 | J12: 365 | K12: 1 | L12: 3 | M12: 223.56 | N12: 9.28 | O12: 4.16 | P12: 237 | Q12: 35.81 | R12: 0 | S12: 1.04 | T12: 2.5 | U12: 4.58 | V12: 7.9 | W12: 51.83 | X12: 288.83 | Y12: 81599.4 | Z12: 3387.2 | AA12: 1518.4 | AB12: 86505 | AC12: 13070.65 | AD12: 0 | AE12: 379.6 | AF12: 912.5 | AG12: 1671.7 | AH12: 2883.5 | AI12: 18917.95 | AJ12: 105422.95 | AK12: 105422.95 | AL12: 365
A13: Client 06 | C13: 514 | D13: SA716-3603 SL CORE | E13: SL Supported Living | F13: 2026-01-01 | H13: 2026-12-31 | J13: 365 | K13: 1 | L13: 3 | M13: 223.56 | N13: 0 | O13: 4.16 | P13: 227.72 | Q13: 35.81 | R13: 0 | S13: 1.04 | T13: 2.5 | U13: 2.35 | V13: 0 | W13: 41.7 | X13: 269.42 | Y13: 81599.4 | Z13: 0 | AA13: 1518.4 | AB13: 83117.8 | AC13: 13070.65 | AD13: 0 | AE13: 379.6 | AF13: 912.5 | AG13: 857.75 | AH13: 0 | AI13: 15220.5 | AJ13: 98338.3 | AK13: 98338.3 | AL13: 365
A14: Client 07 | C14: 515 | D14: SA716-3603 SL CORE | E14: SL Supported Living | F14: 2026-01-01 | H14: 2026-12-31 | J14: 365 | K14: 1 | L14: 2 | M14: 144.81 | N14: 0 | O14: 2.69 | P14: 147.5 | Q14: 34.02 | R14: 0 | S14: 0.68 | T14: 2.5 | U14: 2.5 | V14: 10.44 | W14: 50.14 | X14: 197.64 | Y14: 52855.65 | Z14: 0 | AA14: 981.85 | AB14: 53837.5 | AC14: 12417.3 | AD14: 0 | AE14: 248.2 | AF14: 912.5 | AG14: 912.5 | AH14: 3810.6 | AI14: 18301.1 | AJ14: 72138.6 | AK14: 72138.6 | AL14: 365
A15: Client 08 | C15: 518 | D15: SA716-3603 SL CORE | E15: SL Supported Living | F15: 2026-01-01 | H15: 2026-12-31 | J15: 365 | K15: 1 | L15: 3 | M15: 223.56 | N15: 9.28 | O15: 4.16 | P15: 237 | Q15: 35.81 | R15: 0 | S15: 1.04 | T15: 2.5 | U15: 3.2 | V15: 7.9 | W15: 50.45 | X15: 287.45 | Y15: 81599.4 | Z15: 3387.2 | AA15: 1518.4 | AB15: 86505 | AC15: 13070.65 | AD15: 0 | AE15: 379.6 | AF15: 912.5 | AG15: 1168 | AH15: 2883.5 | AI15: 18414.25 | AJ15: 104919.25 | AK15: 104919.25 | AL15: 365
A16: Client 09 | C16: 519 | D16: SA716-3603 SL CORE | E16: SL Supported Living | F16: 2026-01-01 | H16: 2026-12-31 | J16: 365 | K16: 1 | L16: 3 | M16: 223.56 | N16: 0 | O16: 4.16 | P16: 227.72 | Q16: 35.81 | R16: 0 | S16: 1.04 | T16: 2.5 | U16: 2.25 | V16: 0 | W16: 41.6 | X16: 269.32 | Y16: 81599.4 | Z16: 0 | AA16: 1518.4 | AB16: 83117.8 | AC16: 13070.65 | AD16: 0 | AE16: 379.6 | AF16: 912.5 | AG16: 821.25 | AH16: 0 | AI16: 15184 | AJ16: 98301.8 | AK16: 98301.8 | AL16: 365
A17: Client 11 | C17: 521 | D17: SA716-3603 SL CORE | E17: SL Supported Living | F17: 2026-01-01 | H17: 2026-12-31 | J17: 365 | K17: 1 | L17: 3 | M17: 223.56 | N17: 0 | O17: 4.16 | P17: 227.72 | Q17: 35.81 | R17: 0 | S17: 1.04 | T17: 2.5 | U17: 1.85 | V17: 0 | W17: 41.2 | X17: 268.92 | Y17: 81599.4 | Z17: 0 | AA17: 1518.4 | AB17: 83117.8 | AC17: 13070.65 | AD17: 0 | AE17: 379.6 | AF17: 912.5 | AG17: 675.25 | AH17: 0 | AI17: 15038 | AJ17: 98155.8 | AK17: 98155.8 | AL17: 365
A18: Client 12 | C18: 522 | D18: SA716-3603 SL CORE | E18: SL Supported Living | F18: 2026-01-01 | H18: 2026-12-31 | J18: 365 | K18: 1 | L18: 4 | M18: 291.71 | N18: 0 | O18: 5.42 | P18: 297.13 | Q18: 37.15 | R18: 0 | S18: 1.36 | T18: 2.5 | U18: 4.25 | V18: 10.44 | W18: 55.7 | X18: 352.83 | Y18: 106474.15 | Z18: 0 | AA18: 1978.3 | AB18: 108452.45 | AC18: 13559.75 | AD18: 0 | AE18: 496.4 | AF18: 912.5 | AG18: 1551.25 | AH18: 3810.6 | AI18: 20330.5 | AJ18: 128782.95 | AK18: 128782.95 | AL18: 365
A19: Client 13 | C19: 523 | D19: SA716-3603 SL CORE | E19: SL Supported Living | F19: 2026-01-01 | H19: 2026-12-31 | J19: 365 | K19: 1 | L19: 2 | M19: 144.81 | N19: 0 | O19: 2.69 | P19: 147.5 | Q19: 34.02 | R19: 0 | S19: 0.68 | T19: 2.5 | U19: 1.88 | V19: 2.5 | W19: 41.58 | X19: 189.08 | Y19: 52855.65 | Z19: 0 | AA19: 981.85 | AB19: 53837.5 | AC19: 12417.3 | AD19: 0 | AE19: 248.2 | AF19: 912.5 | AG19: 686.2 | AH19: 912.5 | AI19: 15176.7 | AJ19: 69014.2 | AK19: 69014.2 | AL19: 365
A20: Client 14 | C20: 533 | D20: SA716-3603 SL CORE | E20: SL Supported Living | F20: 2026-01-01 | H20: 2026-12-31 | J20: 365 | K20: 1 | L20: 3 | M20: 223.56 | N20: 0 | O20: 4.16 | P20: 227.72 | Q20: 35.81 | R20: 0 | S20: 1.04 | T20: 2.5 | U20: 5.76 | V20: 13.87 | W20: 58.98 | X20: 286.7 | Y20: 81599.4 | Z20: 0 | AA20: 1518.4 | AB20: 83117.8 | AC20: 13070.65 | AD20: 0 | AE20: 379.6 | AF20: 912.5 | AG20: 2102.4 | AH20: 5062.55 | AI20: 21527.7 | AJ20: 104645.5 | AK20: 104645.5 | AL20: 365
A21: Client 15 | C21: 535 | D21: SA716-3603 SL CORE | E21: SL Supported Living | F21: 2026-01-01 | H21: 2026-12-31 | J21: 365 | K21: 1 | L21: 7 | M21: 291.71 | N21: 0 | O21: 9.24 | P21: 300.95 | Q21: 50.22 | R21: 0 | S21: 2.31 | T21: 2.5 | U21: 5.02 | V21: 2.5 | W21: 62.55 | X21: 363.5 | Y21: 106474.15 | Z21: 0 | AA21: 3372.6 | AB21: 109846.75 | AC21: 18330.3 | AD21: 0 | AE21: 843.15 | AF21: 912.5 | AG21: 1832.3 | AH21: 912.5 | AI21: 22830.75 | AJ21: 132677.5 | AK21: 132677.5 | AL21: 365
J22: 0 | P22: 0 | W22: 0 | X22: 0 | Y22: 0 | Z22: 0 | AA22: 0 | AB22: 0 | AC22: 0 | AD22: 0 | AE22: 0 | AF22: 0 | AG22: 0 | AH22: 0 | AI22: 0 | AJ22: 0 | AK22: 0 | AL22: 0
J23: 0 | P23: 0 | W23: 0 | X23: 0 | Y23: 0 | Z23: 0 | AA23: 0 | AB23: 0 | AC23: 0 | AD23: 0 | AE23: 0 | AF23: 0 | AG23: 0 | AH23: 0 | AI23: 0 | AJ23: 0 | AK23: 0 | AL23: 0
J24: 0 | P24: 0 | W24: 0 | X24: 0 | Y24: 0 | Z24: 0 | AA24: 0 | AB24: 0 | AC24: 0 | AD24: 0 | AE24: 0 | AF24: 0 | AG24: 0 | AH24: 0 | AI24: 0 | AJ24: 0 | AK24: 0 | AL24: 0
J25: 0 | P25: 0 | W25: 0 | X25: 0 | Y25: 0 | Z25: 0 | AA25: 0 | AB25: 0 | AC25: 0 | AD25: 0 | AE25: 0 | AF25: 0 | AG25: 0 | AH25: 0 | AI25: 0 | AJ25: 0 | AK25: 0 | AL25: 0
J26: 0 | P26: 0 | W26: 0 | X26: 0 | Y26: 0 | Z26: 0 | AA26: 0 | AB26: 0 | AC26: 0 | AD26: 0 | AE26: 0 | AF26: 0 | AG26: 0 | AH26: 0 | AI26: 0 | AJ26: 0 | AK26: 0 | AL26: 0
J27: 0 | P27: 0 | W27: 0 | X27: 0 | Y27: 0 | Z27: 0 | AA27: 0 | AB27: 0 | AC27: 0 | AD27: 0 | AE27: 0 | AF27: 0 | AG27: 0 | AH27: 0 | AI27: 0 | AJ27: 0 | AK27: 0 | AL27: 0
J28: 0 | P28: 0 | W28: 0 | X28: 0 | Y28: 0 | Z28: 0 | AA28: 0 | AB28: 0 | AC28: 0 | AD28: 0 | AE28: 0 | AF28: 0 | AG28: 0 | AH28: 0 | AI28: 0 | AJ28: 0 | AK28: 0 | AL28: 0
J29: 0 | P29: 0 | W29: 0 | X29: 0 | Y29: 0 | Z29: 0 | AA29: 0 | AB29: 0 | AC29: 0 | AD29: 0 | AE29: 0 | AF29: 0 | AG29: 0 | AH29: 0 | AI29: 0 | AJ29: 0 | AK29: 0 | AL29: 0
J30: 0 | P30: 0 | W30: =SUM(Q30:V30) -> 0 | X30: =+P30+W30 -> 0 | Y30: =M30*J30 -> 0 | Z30: =J30*N30 -> 0 | AA30: =O30*J30 -> 0 | AB30: =$J30*P30 -> 0 | AC30: 0 | AD30: 0 | AE30: 0 | AF30: 0 | AG30: 0 | AH30: 0 | AI30: 0 | AJ30: =AB30+AI30 -> 0 | AK30: =IF(A31=A30,0,SUMIF($A$4:$A$4793,$A30,AB$4:AB$4793))+IF(A31=A30,0,SUMIF($A$4:$A$4793,$A30,AI$4:AI$4793)) -> 0 | AL30: =IF(A31=A30,0,SUMIF($A$4:$A$4793,$A30,J$4:J$4793))+IF(A31=A30,0,SUMIF($A$4:$A$4793,$A30)) -> 0
J31: 0 | N31: 0 | P31: 0 | W31: 0 | X31: 0 | Y31: 0 | Z31: 0 | AA31: 0 | AB31: 0 | AC31: 0 | AD31: 0 | AE31: 0 | AF31: 0 | AG31: 0 | AH31: 0 | AI31: 0 | AJ31: 0 | AK31: =IF(A32=A31,0,SUMIF($A$4:$A$4793,$A31,AB$4:AB$4793))+IF(A32=A31,0,SUMIF($A$4:$A$4793,$A31,AI$4:AI$4793)) -> 0 | AL31: =IF(A32=A31,0,SUMIF($A$4:$A$4793,$A31,J$4:J$4793))+IF(A32=A31,0,SUMIF($A$4:$A$4793,$A31)) -> 0
A32: Totals - Detail | J32: =SUBTOTAL(9,J4:J31) -> 6570 | K32: =SUBTOTAL(9,K4:K31) -> 18 | P32: =SUBTOTAL(9,P4:P31) -> 4007.16 | W32: =SUBTOTAL(9,W4:W31) -> 948.81 | X32: 4955.97 | Y32: 1424569.45 | Z32: 10161.6 | AA32: 27882.35 | AB32: 1462613.4 | AC32: 276728.4 | AD32: 0 | AE32: 6989.75 | AF32: 16425 | AG32: 15198.6 | AH32: 30973.9 | AI32: 346315.65 | AJ32: 1808929.05 | AK32: 1808929.05 | AL32: 6570
A33: 1 | E33: SL Supported Living | J33: =SUMIF($E$4:$E$30,$E$33,J4:J30) -> 4745 | K33: =SUMIF($E$4:$E$30,$E$33,K4:K30) -> 13 | P33: =SUMIF($E$4:$E$30,$E$33,P4:P30) -> 2809.96 | W33: =SUMIF($E$4:$E$30,$E$33,W4:W30) -> 644.29 | X33: 3454.25 | Y33: 995566.7 | Z33: 10161.6 | AA33: 19907.1 | AB33: 1025635.4 | AC33: 173053.8 | AD33: 0 | AE33: 4989.55 | AF33: 11862.5 | AG33: 15198.6 | AH33: 30061.4 | AI33: 235165.85 | AJ33: 1260801.25 | AK33: 1260801.25 | AL33: 4745
A34: 2 | E34: GH Group Home | J34: =SUMIF($E$4:$E$30,$E$34,J4:J31) -> 730 | K34: =SUMIF($E$4:$E$30,$E$34,K4:K31) -> 2 | P34: =SUMIF($E$4:$E$30,$E$34,P4:P31) -> 375.22 | W34: =SUMIF($E$4:$E$30,$E$34,W4:W31) -> 118.19 | X34: 493.41 | Y34: 134455.05 | Z34: 0 | AA34: 2500.25 | AB34: 136955.3 | AC34: 40686.55 | AD34: 0 | AE34: 627.8 | AF34: 1825 | AG34: 0 | AH34: 0 | AI34: 43139.35 | AJ34: 180094.65 | AK34: 180094.65 | AL34: 730
A35: 3 | E35: GTH Group Training Home | J35: =SUMIF($E$4:$E$30,$E$35,J4:J30) -> 1095 | K35: =SUMIF($E$4:$E$30,$E$35,K4:K30) -> 3 | P35: =SUMIF($E$4:$E$30,$E$35,P4:P30) -> 821.98 | W35: =SUMIF($E$4:$E$30,$E$35,W4:W30) -> 186.33 | X35: 1008.31 | Y35: 294547.7 | Z35: 0 | AA35: 5475 | AB35: 300022.7 | AC35: 62988.05 | AD35: 0 | AE35: 1372.4 | AF35: 2737.5 | AG35: 0 | AH35: 912.5 | AI35: 68010.45 | AJ35: 368033.15 | AK35: 368033.15 | AL35: 1095
A36: DSHS/DDA Schedule H Rate History (Rev. 08/2024)

Sheet List (hidden)
A1: Provider Name | B1: Provider ID | C1: Urban Designation | E1: Program Type | G1: Service Code & RAC
A3: 1N - Accendo of Washington | B3: 215573301 | C3: MSA | E3: SL Supported Living | G3: SA716-3603 SL CORE
A4: 1N - Adult Guidance & Empowerment Service | B4: 111684901 | C4: MSA | E4: GH Group Home | G4: SA716-3604 SL CP
A5: 1N - Alpha Supported Living (Spokane) | B5: 111320906 | C5: MSA | E5: GTH Group Training Home | G5: SA716-3701 SL RCL
A6: 1N - Ambitions - Spokane | B6: 111901906 | C6: MSA | G6: SA716-3905 SL State
A7: 1N - Ambitions - Wenatchee, Omak, Moses Lake | B7: 111901903 | C7: MSA/NON-MSA | G7: SA722-3603 GH CORE
A8: 1N - ARC of Spokane | B8: 111426502 | C8: MSA | G8: SA722-3701 GH RCL
A9: 1N - Assisted Residential Services | B9: 111705601 | C9: MSA | G9: SA722-3905 GH State
A10: 1N - Community Integrated Services | B10: 111425301 | C10: MSA | G10: SA722-3603 GTH CORE
A11: 1N - Community Visions | B11: 111530102 | C11: MSA | G11: SA722-3701 GTH RCL
A12: 1N - Dreamworks Residential | B12: 111913801 | C12: NON-MSA | G12: SA722-3905 GTH State
A13: 1N - Drive Services | B13: 111621401 | C13: MSA
A14: 1N - Excel Supported Living | B14: 111322002 | C14: MSA
A15: 1N - Grace Support Services | B15: 212120601 | C15: MSA
A16: 1N - Grant County Developmental Disabilities (DCL) | B16: 200012501 | C16: NON-MSA
A17: 1N - Hope Human Services (Spokane) | B17: 207150604 | C17: MSA
A18: 1N - Hope Supported Living | B18: 213504001 | C18: MSA
A19: 1N - Kaler House | B19: 111686001 | C19: MSA
A20: 1N - L.M.K. | B20: 111988202 | C20: NON-MSA
A21: 1N - Latah Services | B21: 111762501 | C21: MSA
A22: 1N - Living In Fulfilling Environment | B22: 111777301 | C22: MSA
A23: 1N - Mission Vista | B23: 111707401 | C23: MSA
A24: 1N - Parent's Cooperative Society for the Handicapped (Merry Glen) | B24: 111328901 | C24: MSA
A25: 1N - ResCare Spokane | B25: 111968514 | C25: MSA
A26: 1N - Sails Spokane | B26: 111805707 | C26: MSA
A27: 1S - Alternative Residential Services | B27: 111625401 | C27: MSA/NON-MSA
A28: 1S - Ambitions - Kennewick | B28: 111901901 | C28: MSA
A29: 1S - Ambitions - Yakima | B29: 111901907 | C29: MSA
A30: 1S - Community Living | B30: 111962202 | C30: MSA
A31: 1S - Elmview | B31: 111604101 | C31: MSA/NON-MSA
A32: 1S - Habilitat | B32: 111449601 | C32: NON-MSA
A33: 1S - Kittitas Interactive Management | B33: 111688701 | C33: NON-MSA
A34: 1S - Kittitas Interactive Management (Yakima) | B34: 111688702 | C34: MSA
A35: 1S - Reach Supported Living | B35: 209862801 | C35: MSA
A36: 1S - Reach Supported Living Walla Walla | B36: 209862802 | C36: MSA
A37: 1S - Reach Supported Living Yakima | B37: 209862803 | C37: MSA
A38: 1S - Tri-Cities Residential Services | B38: 111872501 | C38: MSA
A39: 1S - Valley Residential Services | B39: 111777901 | C39: NON-MSA
A40: 2N - Aacres | B40: 111414307 | C40: MSA
A41: 2N - Access Living | B41: 111675101 | C41: MSA
A42: 2N - All Heart Agency | B42: 111961601 | C42: MSA
A43: 2N - Alpha Supported Living Services | B43: 111320902 | C43: MSA
A44: 2N - Ambitions Whatcom | B44: 111901908 | C44: MSA
A45: 2N - Camelot Society | B45: 101955202 | C45: MSA
A46: 2N - Cascade Connections | B46: 111724102 | C46: MSA
A47: 2N - Evergreen Supported Living | B47: 111690301 | C47: MSA
A48: 2N - Holly Community Services | B48: 111765001 | C48: MSA
A49: 2N - La Casa de Esperanza | B49: 225148901 | C49: MSA
A50: 2N - Puffin Island | B50: 111959501 | C50: MSA
A51: 2N - Quilceda Community Services | B51: 111321203 | C51: MSA
A52: 2N - Rehabco | B52: 111681901 | C52: MSA
A53: 2N - Rescare | B53: 111968512 | C53: MSA
A54: 2N - Sails | B54: 111805705 | C54: MSA
A55: 2N - Service Alternatives for WA | B55: 111513304 | C55: MSA
A56: 2N - Snohomish Supportive Living Services | B56: 111518901 | C56: MSA
A57: 2N - Soundview Association | B57: 111830201 | C57: MSA
A58: 2N - Steps Toward Independence | B58: 112034301 | C58: MSA
A59: 2N - Sunrise Services | B59: 203434610 | C59: MSA
A60: 2N - Village Community Services | B60: 111938301 | C60: MSA
A61: 2N - Volunteers of America | B61: 200494106 | C61: MSA
A62: 2S - Alpha Supported Living Services | B62: 111320901 | C62: KING
A63: 2S - Ambitions | B63: 111901902 | C63: KING
A64: 2S - Angeline House | B64: 111798601 | C64: KING
A65: 2S - Arc of King County | B65: 112013701 | C65: KING
A66: 2S - Banchero Friends Services | B66: 111415001 | C66: KING
A67: 2S - Bethesda Lutheran Communities | B67: 111621301 | C67: KING
A68: 2S - Camelot Society | B68: 101955201 | C68: KING
A69: 2S - Cascade Community Services | B69: 111875001 | C69: KING
A70: 2S - Citizen Access Residential Resources | B70: 111533401 | C70: KING
A71: 2S - Community Integrated Services | B71: 111425302 | C71: KING
A72: 2S - Community Living | B72: 111962201 | C72: KING
A73: 2S - Destiny House Operations | B73: 111992801 | C73: KING
A74: 2S - Friendship House | B74: 111405501 | C74: KING
A75: 2S - Greenwood Home | B75: 111913301 | C75: KING
A76: 2S - Habilitation Services | B76: 208173701 | C76: KING
A77: 2S - Helping Hands DBA Dahlia | B77: 111736003 | C77: KING
A78: 2S - Inglewood Residential and Community Services | B78: 111568401 | C78: KING
A79: 2S - Integrated Living Services | B79: 111789002 | C79: KING
A80: 2S - L'Arche Noah Sealth of Seattle | B80: 111798601 | C80: KING
A81: 2S - Life Skills Center | B81: 111499601 | C81: KING
A82: 2S - Maksu | B82: 111577901 | C82: KING
A83: 2S - Parkview Services | B83: 111456901 | C83: KING
A84: 2S - Provail | B84: 101144803 | C84: KING
A85: 2S - Puget Sound Regional Services | B85: 111925301 | C85: KING
A86: 2S - Res-Care Washington | B86: 111968506 | C86: KING
A87: 2S - SAILS | B87: 111805704 | C87: KING
A88: 2S - Service Alternatives for WA | B88: 111513302 | C88: KING
A89: 2S - Shamrock Living Services | B89: 111958301 | C89: KING
A90: 2S - Shared Journeys | B90: 111515201 | C90: KING
A91: 2S - Stand Together | B91: 111753401 | C91: KING
A92: 2S - Supportive Living NW | B92: 224704101 | C92: KING
A93: 2S - Tahoma Hills | B93: 111799101 | C93: KING
A94: 2S - Total Living Concept | B94: 111571101 | C94: KING
A95: 2S - United Friends Group Home | B95: 101601101 | C95: KING
A96: 2S - Volunteers of America | B96: 200494104 | C96: KING
A97: 3N - Aacres WA | B97: 111414304 | C97: MSA
A98: 3N - Ambitions, WA | B98: 111901904 | C98: MSA
A99: 3N - Communitas Group | B99: 102702801 | C99: MSA
A100: 3N - Community Alternatives for People with Autism (CAPA) | B100: 112026801 | C100: MSA
A101: 3N - Educational Programs in Home Living | B101: 111975401 | C101: MSA
A102: 3N - Group Action for Peninsula People | B102: 111703801 | C102: MSA
A103: 3N - Hope Human Services | B103: 207150601 | C103: MSA
A104: 3N - Kitsap Residences | B104: 111781001 | C104: MSA
A105: 3N - Kitsap Tenant Support Services | B105: 111715902 | C105: MSA
A106: 3N - L'Arche Tahoma Hope Community | B106: 111610303 | C106: MSA
A107: 3N - Life Force Services | B107: 111691201 | C107: MSA
A108: 3N - NW Services for Independent Living | B108: 111812601 | C108: MSA
A109: 3N - Options Unlimited | B109: 111904801 | C109: MSA
A110: 3N - PAM Group Home | B110: 111728401 | C110: MSA
A111: 3N - Puget Sound Assisted Living | B111: 111557601 | C111: MSA
A112: 3N - Res-Care Washington | B112: 111968504 | C112: MSA
A113: 3N - Service Alternatives for WA | B113: 111513305 | C113: MSA
A114: 3N - Tahoma Associates | B114: 111335302 | C114: MSA
A115: 3N - Valley Supported Living | B115: 111938101 | C115: MSA
A116: 3S - Aacres - Clark | B116: 111414303 | C116: NON-MSA
A117: 3S - Aacres - Thurston | B117: 111414308 | C117: MSA
A118: 3S - ABC Residential Services | B118: 555777999 | C118: MSA
A119: 3S - Adam's Place | B119: 214039510 | C119: MSA
A120: 3S - Ambitions | B120: 111901905 | C120: MSA/NON-MSA
A121: 3S - Another Option | B121: 111619102 | C121: MSA
A122: 3S - Arc of Clark County | B122: 102623403 | C122: MSA
A123: 3S - CCH Individual Support Services | B123: 111909801 | C123: NON-MSA
A124: 3S - Columbia Cove Group Home | B124: 222116401 | C124: MSA
A125: 3S - Citizen Access Residential Resources | B125: 111533403 | C125: MSA
A126: 3S - Community Resources | B126: 111977701 | C126: MSA/NON-MSA
A127: 3S - Exceptional Foresters | B127: 111551801 | C127: MSA
A128: 3S - Harbor Alternative Living Association | B128: 111349601 | C128: NON-MSA
A129: 3S - Hope Human Services | B129: 207150603 | C129: MSA
A130: 3S - Kitsap Tenant Support Services | B130: 111715901 | C130: NON-MSA
A131: 3S - Kokua | B131: 111492901 | C131: MSA
A132: 3S - Life Force Services - Thurston | B132: 111691202 | C132: MSA
A133: 3S - Life Works | B133: 111594402 | C133: MSA
A134: 3S - Northwest Supported Living - Clark | B134: 215510001 | C134: MSA
A135: 3S - Northwest Supported Living - Thurston | B135: 215510002 | C135: MSA
A136: 3S - Placeone | B136: 111512001 | C136: MSA
A137: 3S - Reside Residential Care of Washington | B137: 111864101 | C137: MSA
A138: 3S - ROAR | B138: 111442501 | C138: MSA
A139: 3S - SOLO | B139: 111910501 | C139: MSA
A140: 3S - Twin Harbors Group Home Association | B140: 111669901 | C140: NON-MSA
A141: 3S - Vancare | B141: 111811201 | C141: MSA
